Workbook

Sheet т.1
I1: Таблица 1
A2: Количество населения и общедоступных библиотек Министерства культуры
A4: № | B4: ЦБС | C4: население ( чел. в тыс.) | F4: количество библиотек
C5: Всего | D5: гор. | E5: сельск. | F5: 2023 | H5: 2024
F6: всего | G6: из них в | H6: всего | I6: из них в
G7: с/мест. | I7: с/мест
A8: 1 | B8: Абыйская | C8: =D8+E8 -> 3.7 | D8: 1.8 | E8: 1.9 | F8: 7 | G8: 5 | H8: 7 | I8: 5
A9: 2 | B9: Аллаиховская | C9: 2.4 | D9: 1.9 | E9: 0.5 | F9: 6 | G9: 4 | H9: 6 | I9: 4
A10: 3 | B10: Амгинская | C10: 16.7 | E10: 16.7 | F10: 16 | G10: 16 | H10: 16 | I10: 16
A11: 4 | B11: Анабарская | C11: 3.5 | E11: 3.5 | F11: 3 | G11: 3 | H11: 3 | I11: 3
A12: 5 | B12: Булунская | C12: 8.1 | D12: 4.6 | E12: 3.5 | F12: 8 | G12: 6 | H12: 8 | I12: 6
A13: 6 | B13: Верхневилюйская | C13: 20.7 | E13: 20.7 | F13: 23 | G13: 23 | H13: 23 | I13: 23
A14: 7 | B14: Верхнеколымская | C14: 3.7 | D14: 2.4 | E14: 1.3 | F14: 7 | G14: 5 | H14: 7 | I14: 5
A15: 8 | B15: Верхоянская | C15: 10 | D15: 4.7 | E15: 5.3 | F15: 17 | G15: 13 | H15: 17 | I15: 13
A16: 9 | B16: Вилюйская | C16: 25.2 | D16: 13 | E16: 12.2 | F16: 24 | G16: 20 | H16: 24 | I16: 20
A17: 10 | B17: Горная | C17: 11.9 | E17: 11.9 | F17: 9 | G17: 9 | H17: 9 | I17: 9
A18: 11 | B18: Жиганская | C18: 4 | E18: 4 | F18: 5 | G18: 5 | H18: 5 | I18: 5
A19: 12 | B19: Кобяйская | C19: 11 | D19: 3.2 | E19: 7.8 | F19: 17 | G19: 15 | H19: 17 | I19: 15
A20: 13 | B20: Ленская | C20: 31.8 | D20: 28 | E20: 3.8 | F20: 21 | G20: 14 | H20: 21 | I20: 14
A21: 14 | B21: Момская | C21: 3.8 | E21: 3.8 | F21: 7 | G21: 7 | H21: 7 | I21: 7
A22: 15 | B22: Намская | C22: 25.1 | E22: 25.1 | F22: 20 | G22: 20 | H22: 20 | I22: 20
A23: 16 | B23: Нижнеколымская | C23: 4.2 | D23: 2.6 | E23: 1.6 | F23: 6 | G23: 3 | H23: 6 | I23: 3
A24: 17 | B24: Нюрбинская | C24: 22.8 | D24: 10.1 | E24: 12.7 | F24: 23 | G24: 20 | H24: 23 | I24: 20
A25: 18 | B25: Оймяконская | C25: 7.6 | D25: 4.5 | E25: 3.1 | F25: 9 | G25: 6 | H25: 9 | I25: 6
A26: 19 | B26: Олекминская | C26: 20.5 | D26: 8.5 | E26: 12 | F26: 27 | G26: 25 | H26: 27 | I26: 25
A27: 20 | B27: Оленекская | C27: 4.4 | E27: 4.4 | F27: 5 | G27: 5 | H27: 5 | I27: 5
A28: 21 | B28: Среднеколымская | C28: 6.7 | D28: 3.1 | E28: 3.6 | F28: 11 | G28: 9 | H28: 11 | I28: 9
A29: 22 | B29: Сунтарская | C29: 22.2 | E29: 22.2 | F29: 22 | G29: 22 | H29: 22 | I29: 22
A30: 23 | B30: Таттинская | C30: 16.8 | E30: 16.8 | F30: 15 | G30: 15 | H30: 15 | I30: 15
A31: 24 | B31: Томпонская | C31: 10.9 | D31: 6.1 | E31: 4.8 | F31: 13 | G31: 10 | H31: 13 | I31: 10
A32: 25 | B32: Усть-Алданская | C32: 22 | E32: 22 | F32: 28 | G32: 28 | H32: 28 | I32: 28
A33: 26 | B33: Усть-Майская | C33: 7.3 | D33: 5.1 | E33: 2.2 | F33: 10 | G33: 5 | H33: 10 | I33: 5
A34: 27 | B34: Усть-Янская | C34: 6.7 | D34: 3.4 | E34: 3.3 | F34: 11 | G34: 7 | H34: 11 | I34: 7
A35: 28 | B35: Хангаласская | C35: 34.3 | D35: 17.2 | E35: 17.1 | F35: 24 | G35: 21 | H35: 24 | I35: 21
A36: 29 | B36: Чурапчинская | C36: 21.8 | E36: 21.8 | F36: 19 | G36: 19 | H36: 19 | I36: 19
A37: 30 | B37: Мирнинская | C37: 71.7 | D37: 69.1 | E37: 2.6 | F37: 11 | G37: 3 | H37: 11 | I37: 3
A38: 31 | B38: Нерюнгринская | C38: 68.4 | D38: 67.2 | E38: 1.2 | F38: 8 | G38: 2 | H38: 8 | I38: 2
A39: 32 | B39: Эвено-Бытантайская | C39: 3 | E39: 3 | F39: 3 | G39: 3 | H39: 3 | I39: 3
A40: 33 | B40: Якутская | C40: 385 | D40: 367.7 | E40: 17.3 | F40: 18 | G40: 4 | H40: 18 | I40: 4
A41: 34 | B41: Алданская | C41: 39 | D41: 35.7 | E41: 3.3 | F41: 9 | G41: 5 | H41: 9 | I41: 5
A42: 35 | B42: М.-Кангаласская | C42: 32.9 | D42: 5.3 | E42: 27.6 | F42: 31 | G42: 30 | H42: 31 | I42: 30
A43: 36 | B43: ГБ г.Нерюнгри | F43: 1 | H43: 1
A44: 37 | B44: Бердигестях ДБ | F44: 1 | G44: 1 | H44: 1 | I44: 1
A45: 38 | B45: Б-ка ГО "Жатай" | C45: 11.8 | D45: 11.8 | F45: 1 | H45: 1
A46: 39 | B46: Алданский БИЦ | F46: 2 | G46: 1 | H46: 2 | I46: 1
A47: 40 | B47: Томмотский БИЦ | F47: 3 | G47: 1 | H47: 3 | I47: 1
B48: Итого по МБ | C48: 1001.6 | D48: =SUM(D8:D47) -> 677 | E48: 324.6 | F48: 501 | G48: 410 | H48: 501 | I48: 410
B49: НБ РС(Я) | C49: 0 | F49: 1 | H49: 1
B50: Филиал НБ "ДТК" | C50: 0 | F50: 1 | H50: 1
B51: ЯРСБНС | C51: 0 | F51: 1 | H51: 1
B52: Итого по РС(Я) | C52: =SUM(C48:C51) -> 1001.6 | D52: 677 | E52: 324.6 | F52: 504 | G52: 410 | H52: 504 | I52: 410

Sheet т.2
G1: Таблица 2
A2: Количество пользователей и процент охвата населения
A3: библиотечным обслуживанием
A4: № | B4: ЦБС | C4: кол-во пользователей | F4: % охвата населения библ.обслуж.
C5: 2023 | D5: 2024 | E5: "+ -" | F5: 2023 | G5: 2024 | H5: "+ -"
A6: 1 | B6: Абыйская | C6: 3286 | D6: 3338 | E6: =D6-C6 -> 52 | F6: 88.8 | G6: =D6*100/т.1!C8/1000 -> 90.21621622 | H6: =G6-F6 -> 1.416216216
A7: 2 | B7: Аллаиховская | C7: 1372 | D7: 1369 | E7: =D7-C7 -> -3 | F7: 57.2 | G7: =D7*100/т.1!C9/1000 -> 57.04166667 | H7: =G7-F7 -> -0.1583333333
A8: 3 | B8: Амгинская | C8: 11658 | D8: 11936 | E8: 278 | F8: 69.8 | G8: =D8*100/т.1!C10/1000 -> 71.47305389 | H8: 1.673053892
A9: 4 | B9: Анабарская | C9: 1056 | D9: 1626 | E9: 570 | F9: 30.2 | G9: =D9*100/т.1!C11/1000 -> 46.45714286 | H9: 16.25714286
A10: 5 | B10: Булунская | C10: 6997 | D10: 7040 | E10: 43 | F10: 86.4 | G10: =D10*100/т.1!C12/1000 -> 86.91358025 | H10: 0.5135802469
A11: 6 | B11: Верхневилюйская | C11: 13304 | D11: 13304 | E11: 0 | F11: 64.3 | G11: =D11*100/т.1!C13/1000 -> 64.2705314 | H11: -0.02946859903
A12: 7 | B12: Верхнеколымская | C12: 3347 | D12: 3419 | E12: 72 | F12: 90.5 | G12: =D12*100/т.1!C14/1000 -> 92.40540541 | H12: 1.905405405
A13: 8 | B13: Верхоянская | C13: 7060 | D13: 7025 | E13: =D13-C13 -> -35 | F13: 70.6 | G13: =D13*100/т.1!C15/1000 -> 70.25 | H13: -0.35
A14: 9 | B14: Вилюйская | C14: 12706 | D14: 12825 | E14: 119 | F14: 50.4 | G14: =D14*100/т.1!C16/1000 -> 50.89285714 | H14: 0.4928571429
A15: 10 | B15: Горная | C15: 6641 | D15: 6998 | E15: 357 | F15: 68.2 | G15: 71.8 | H15: 3.6
A16: 11 | B16: Жиганская | C16: 3447 | D16: 2827 | E16: -620 | F16: 86.2 | G16: =D16*100/т.1!C18/1000 -> 70.675 | H16: -15.525
A17: 12 | B17: Кобяйская | C17: 10081 | D17: 9671 | E17: -410 | F17: 91.6 | G17: =D17*100/т.1!C19/1000 -> 87.91818182 | H17: -3.681818182
A18: 13 | B18: Ленская | C18: 17727 | D18: 16509 | E18: -1218 | F18: 55.7 | G18: =D18*100/т.1!C20/1000 -> 51.91509434 | H18: -3.78490566
A19: 14 | B19: Момская | C19: 2178 | D19: 2361 | E19: 183 | F19: 57.3 | G19: =D19*100/т.1!C21/1000 -> 62.13157895 | H19: 4.831578947
A20: 15 | B20: Намская | C20: 15600 | D20: 15571 | E20: -29 | F20: 62.2 | G20: =D20*100/т.1!C22/1000 -> 62.03585657 | H20: -0.1641434263
A21: 16 | B21: Нижнеколымская | C21: 1768 | D21: 2217 | E21: 449 | F21: 42.1 | G21: =D21*100/т.1!C23/1000 -> 52.78571429 | H21: 10.68571429
A22: 17 | B22: Нюрбинская | C22: 18570 | D22: 17369 | E22: -1201 | F22: 81.4 | G22: =D22*100/т.1!C24/1000 -> 76.17982456 | H22: -5.220175439
A23: 18 | B23: Оймяконская | C23: 6441 | D23: 6478 | E23: 37 | F23: 84.8 | G23: =D23*100/т.1!C25/1000 -> 85.23684211 | H23: 0.4368421053
A24: 19 | B24: Олекминская | C24: 15004 | D24: 14881 | E24: -123 | F24: 73.2 | G24: =D24*100/т.1!C26/1000 -> 72.5902439 | H24: -0.6097560976
A25: 20 | B25: Оленекская | C25: 3156 | D25: 3624 | E25: 468 | F25: 71.6744186 | G25: =D25*100/т.1!C27/1000 -> 82.36363636 | H25: 10.68921776
A26: 21 | B26: Среднеколымская | C26: 4256 | D26: 5069 | E26: 813 | F26: 63.5 | G26: =D26*100/т.1!C28/1000 -> 75.65671642 | H26: 12.15671642
A27: 22 | B27: Сунтарская | C27: 17084 | D27: 16467 | E27: -617 | F27: 77 | G27: =D27*100/т.1!C29/1000 -> 74.17567568 | H27: -2.824324324
A28: 23 | B28: Таттинская | C28: 8379 | D28: 8552 | E28: 173 | F28: 49.9 | G28: =D28*100/т.1!C30/1000 -> 50.9047619 | H28: 1.004761905
A29: 24 | B29: Томпонская | C29: 7320 | D29: 5951 | E29: -1369 | F29: 67.2 | G29: =D29*100/т.1!C31/1000 -> 54.59633028 | H29: -12.60366972
A30: 25 | B30: Усть-Алданская | C30: 20003 | D30: 19467 | E30: -536 | F30: 90.9 | G30: =D30*100/т.1!C32/1000 -> 88.48636364 | H30: -2.413636364
A31: 26 | B31: Усть-Майская | C31: 4429 | D31: 4459 | E31: 30 | F31: 60.7 | G31: =D31*100/т.1!C33/1000 -> 61.08219178 | H31: 0.3821917808
A32: 27 | B32: Усть-Янская | C32: 5281 | D32: 5373 | E32: 92 | F32: 78.8 | G32: =D32*100/т.1!C34/1000 -> 80.19402985 | H32: 1.394029851
A33: 28 | B33: Хангаласская | C33: 23382 | D33: 24332 | E33: 950 | F33: 68.2 | G33: =D33*100/т.1!C35/1000 -> 70.93877551 | H33: 2.73877551
A34: 29 | B34: Чурапчинская | C34: 15335 | D34: 15221 | E34: -114 | F34: 70.3 | G34: =D34*100/т.1!C36/1000 -> 69.82110092 | H34: -0.4788990826
A35: 30 | B35: Мирнинская | C35: 23035 | D35: 23364 | E35: 329 | F35: 32.1 | G35: =D35*100/т.1!C37/1000 -> 32.58577406 | H35: 0.4857740586
A36: 31 | B36: Нерюнгринская | C36: 13162 | D36: 13151 | E36: -11 | F36: 32.7 | G36: 32.5 | H36: -0.2
A37: 32 | B37: Эвено-Бытантай | C37: 1420 | D37: 1420 | E37: =D37-C37 -> 0 | F37: 47.3 | G37: =D37*100/т.1!C39/1000 -> 47.33333333 | H37: =G37-F37 -> 0.03333333333
A38: 33 | B38: Якутская | C38: 70792 | D38: 72046 | E38: 1254 | F38: 18.4 | G38: =D38*100/т.1!C40/1000 -> 18.71324675 | H38: 0.3132467532
A39: 34 | B39: Алданская | C39: 10044 | D39: 9924 | E39: =D39-C39 -> -120 | F39: 45.7 | G39: 46.3 | H39: =G39-F39 -> 0.6
A40: 35 | B40: М.-Кангаласская | C40: 21058 | D40: 21133 | E40: =D40-C40 -> 75 | F40: 64 | G40: =D40*100/т.1!C42/1000 -> 64.23404255 | H40: =G40-F40 -> 0.2340425532
A41: 36 | B41: ГБ г.Нерюнгри | C41: 9375 | D41: 9055 | E41: =D41-C41 -> -320
A42: 37 | B42: Бердигестях ДБ | C42: 1548 | D42: 1550 | E42: =D42-C42 -> 2
A43: 38 | B43: Б-ка ГО "Жатай" | C43: 2684 | D43: 2640 | E43: -44 | F43: 22.7 | G43: =D43*100/т.1!C45/1000 -> 22.37288136 | H43: -0.3271186441
A44: 39 | B44: Алданский БИЦ | C44: 3378 | D44: 3524 | E44: 146
A45: 40 | B45: Томмотский БИЦ | C45: 4526 | D45: 4609 | E45: 83
B46: Итого по МБ | C46: =SUM(C6:C45) -> 427890 | D46: =SUM(D6:D45) -> 427695 | E46: =SUM(E6:E45) -> -195 | F46: 42.9 | G46: =D46*100/т.1!C48/1000 -> 42.70117812 | H46: =G46-F46 -> -0.198821885
B47: НБ РС(Я) | C47: 35869 | D47: 36322 | E47: =D47-C47 -> 453
B48: Филиал НБ "ДТК" | C48: 11760 | D48: 12665 | E48: =D48-C48 -> 905
B49: ЯРСБНС | C49: 2393 | D49: 2506 | E49: =D49-C49 -> 113
B50: Итого по РС(Я) | C50: =SUM(C46:C49) -> 477912 | D50: =SUM(D46:D49) -> 479188 | E50: =SUM(E46:E49) -> 1276 | F50: 47.9 | G50: =D50*100/т.1!C52/1000 -> 47.8422524 | H50: =G50-F50 -> -0.05774760383

Sheet 2.1
I1: Таблица 2.1
A2: Количество пользователей
A4: № | B4: ЦБС | C4: всего | D4: из них пользователей, обслуженных в стационарных условиях | G4: из них во внестац. условиях | H4: из них удал. польз. | I4: читаемость
D5: всего | E5: до 14 лет | F5: от 15-30
A6: 1 | B6: Абыйская | C6: 3338 | D6: 2571 | E6: 921 | F6: 521 | G6: 767 | I6: =т.6!D5/т.2!D6 -> 28.97633313
A7: 2 | B7: Аллаиховская | C7: 1369 | D7: 1225 | E7: 484 | F7: 205 | G7: 144 | I7: =т.6!D6/т.2!D7 -> 34.83783784
A8: 3 | B8: Амгинская | C8: 11936 | D8: 9040 | E8: 2410 | F8: 1866 | G8: 2135 | H8: 761 | I8: =т.6!D7/т.2!D8 -> 20.79750335
A9: 4 | B9: Анабарская | C9: 1626 | D9: 1449 | E9: 421 | F9: 538 | G9: 177 | I9: =т.6!D8/т.2!D9 -> 18.98646986
A10: 5 | B10: Булунская | C10: 7040 | D10: 6076 | E10: 1344 | F10: 1553 | G10: 964 | I10: =т.6!D9/т.2!D10 -> 22.79971591
A11: 6 | B11: Верхневилюйская | C11: 13304 | D11: 10710 | E11: 3791 | F11: 2204 | G11: 2569 | H11: 25 | I11: =т.6!D10/т.2!D11 -> 23.7076819
A12: 7 | B12: Верхнеколымская | C12: 3419 | D12: 2019 | E12: 785 | F12: 310 | G12: 1385 | H12: 15 | I12: =т.6!D11/т.2!D12 -> 25.25709272
A13: 8 | B13: Верхоянская | C13: 7025 | D13: 6158 | E13: 1759 | F13: 1390 | G13: 867 | I13: =т.6!D12/т.2!D13 -> 22.32626335
A14: 9 | B14: Вилюйская | C14: 12825 | D14: 12538 | E14: 4331 | F14: 3390 | G14: 287 | I14: =т.6!D13/т.2!D14 -> 27.13005848
A15: 10 | B15: Горная | C15: 6998 | D15: 5409 | E15: 1369 | F15: 1256 | G15: 880 | H15: 709 | I15: =т.6!D14/т.2!D15 -> 24.29151186
A16: 11 | B16: Жиганская | C16: 2827 | D16: 2252 | E16: 715 | F16: 487 | G16: 474 | H16: 101 | I16: =т.6!D15/т.2!D16 -> 17.56243368
A17: 12 | B17: Кобяйская | C17: 9671 | D17: 7677 | E17: 2572 | F17: 1827 | G17: 1931 | H17: 63 | I17: =т.6!D16/т.2!D17 -> 18.20359839
A18: 13 | B18: Ленская | C18: 16509 | D18: 11310 | E18: 4815 | F18: 1810 | G18: 5199 | I18: =т.6!D17/т.2!D18 -> 21.41013992
A19: 14 | B19: Момская | C19: 2361 | D19: 2088 | E19: 460 | F19: 462 | G19: 273 | I19: =т.6!D18/т.2!D19 -> 18.60228717
A20: 15 | B20: Намская | C20: 15571 | D20: 13443 | E20: 4795 | F20: 3231 | G20: 2086 | H20: 42 | I20: =т.6!D19/т.2!D20 -> 22.43317706
A21: 16 | B21: Нижнеколымская | C21: 2217 | D21: 1693 | E21: 715 | F21: 379 | G21: 524 | I21: =т.6!D20/т.2!D21 -> 22.44564727
A22: 17 | B22: Нюрбинская | C22: 17369 | D22: 12332 | E22: 3118 | F22: 3354 | G22: 5037 | I22: =т.6!D21/т.2!D22 -> 19.58615925
A23: 18 | B23: Оймяконская | C23: 6478 | D23: 5201 | E23: 1287 | F23: 989 | G23: 1277 | I23: =т.6!D22/т.2!D23 -> 17.01481939
A24: 19 | B24: Олекминская | C24: 14881 | D24: 13480 | E24: 4380 | F24: 3649 | G24: 1401 | I24: =т.6!D23/т.2!D24 -> 20.16006989
A25: 20 | B25: Оленекская | C25: 3624 | D25: 3338 | E25: 1216 | F25: 352 | G25: 262 | H25: 24 | I25: =т.6!D24/т.2!D25 -> 12.36810155
A26: 21 | B26: Среднеколымская | C26: 5069 | D26: 3841 | E26: 949 | F26: 843 | G26: 1228 | I26: =т.6!D25/т.2!D26 -> 11.10159795
A27: 22 | B27: Сунтарская | C27: 16467 | D27: 13331 | E27: 4964 | F27: 3292 | G27: 3124 | H27: 12 | I27: =т.6!D26/т.2!D27 -> 18.42563916
A28: 23 | B28: Таттинская | C28: 8552 | D28: 5537 | E28: 2140 | F28: 827 | G28: 3000 | H28: 15 | I28: =т.6!D27/т.2!D28 -> 20.20872311
A29: 24 | B29: Томпонская | C29: 5951 | D29: 5130 | E29: 2137 | F29: 1087 | G29: 810 | H29: 11 | I29: =т.6!D28/т.2!D29 -> 23.35758696
A30: 25 | B30: Усть-Алданская | C30: 19467 | D30: 11594 | E30: 3780 | F30: 2664 | G30: 7826 | H30: 47 | I30: =т.6!D29/т.2!D30 -> 20.94113115
A31: 26 | B31: Усть-Майская | C31: 4459 | D31: 3806 | E31: 1383 | F31: 835 | G31: 653 | I31: =т.6!D30/т.2!D31 -> 33.09979816
A32: 27 | B32: Усть-Янская | C32: 5373 | D32: 4903 | E32: 1382 | F32: 1447 | G32: 470 | I32: =т.6!D31/т.2!D32 -> 17.08393821
A33: 28 | B33: Хангаласская | C33: 24332 | D33: 11576 | E33: 4236 | F33: 2266 | G33: 3035 | H33: 9721 | I33: =т.6!D32/т.2!D33 -> 15.76438435
A34: 29 | B34: Чурапчинская | C34: 15221 | D34: 11047 | E34: 2900 | F34: 2584 | G34: 4174 | I34: =т.6!D33/т.2!D34 -> 21.83463636
A35: 30 | B35: Мирнинская | C35: 23364 | D35: 22011 | E35: 7771 | F35: 4647 | G35: 1275 | H35: 78 | I35: =т.6!D34/т.2!D35 -> 23.04836501
A36: 31 | B36: Нерюнгринская | C36: 13151 | D36: 11473 | E36: 3051 | F36: 2900 | G36: 928 | H36: 750 | I36: =т.6!D35/т.2!D36 -> 23.0078321
A37: 32 | B37: Эвено-Бытантайская | C37: 1420 | D37: 1024 | E37: 399 | F37: 193 | G37: 396 | I37: =т.6!D36/т.2!D37 -> 27.17183099
A38: 33 | B38: Якутская | C38: 72046 | D38: 65467 | E38: 20920 | F38: 20307 | G38: 6579 | I38: =т.6!D37/т.2!D38 -> 20.57911612
A39: 34 | B39: Алданская | C39: 9924 | D39: 8254 | E39: 1379 | F39: 1693 | G39: 1403 | H39: 267 | I39: =т.6!D38/т.2!D39 -> 18.11023781
A40: 35 | B40: М.-Кангаласская | C40: 21133 | D40: 15775 | E40: 5055 | F40: 2660 | G40: 5258 | H40: 100 | I40: =т.6!D39/т.2!D40 -> 18.17957696
A41: 36 | B41: ГБ г.Нерюнгри | C41: 9055 | D41: 8259 | E41: 2471 | F41: 2453 | G41: 349 | H41: 447 | I41: =т.6!D40/т.2!D41 -> 20.40320265
A42: 37 | B42: Бердигестях ДБ | C42: 1550 | D42: 1170 | E42: 1058 | F42: 61 | G42: 380 | I42: =т.6!D41/т.2!D42 -> 23.8883871
A43: 38 | B43: Б-ка ГО "Жатай" | C43: 2640 | D43: 2620 | E43: 1327 | F43: 300 | G43: 20 | I43: =т.6!D42/т.2!D43 -> 17.97234848
A44: 39 | B44: Алданский БИЦ | C44: 3524 | D44: 2950 | E44: 1921 | F44: 549 | G44: 574 | I44: =т.6!D43/т.2!D44 -> 20.08399546
A45: 40 | B45: Томмотский БИЦ | C45: 4609 | D45: 4279 | E45: 1894 | F45: 562 | G45: 330 | I45: =т.6!D44/т.2!D45 -> 24.38055977
B46: Итого по МБ | C46: =SUM(C6:C45) -> 427695 | D46: 344056 | E46: 112805 | F46: 81943 | G46: 70451 | H46: 13188 | I46: =т.6!D45/т.2!D46 -> 20.78825565
B47: НБ РС(Я) | C47: 36322 | D47: 12507 | F47: 9093 | G47: 4040 | H47: 19775 | I47: =т.6!D46/т.2!D47 -> 45.06329497
B48: Филиал НБ "ДТК" | C48: 12665 | D48: 11845 | E48: 8630 | F48: 2395 | G48: 820 | I48: =т.6!D47/т.2!D48 -> 10.82179234
B49: ЯРСБНС | C49: 2506 | D49: 557 | E49: 91 | F49: 83 | G49: 1590 | H49: 359 | I49: =т.6!D48/т.2!D49 -> 42.98563448
B50: Итого по РС(Я) | C50: =SUM(C46:C49) -> 479188 | D50: 368965 | E50: 121526 | F50: 93514 | G50: 76901 | H50: 33322 | I50: =т.6!D49/т.2!D50 -> 22.48095111

Sheet т.2.2
G1: Таблица 2.2
B2: Количество пользователей в сельской местности
A3: № | B3: ЦБС | C3: всего из общего числа в с/местн. | D3: из них пользователей, обслуженных в стенах библиотеки | G3: из них во внестац | H3: из них удал. польз
D4: всего | E4: до 14 лет | F4: от 15-30
A7: 1 | B7: Абыйская | C7: 1460 | D7: 1223 | E7: 429 | F7: 218 | G7: 237
A8: 2 | B8: Аллаиховская | C8: 294 | D8: 274 | E8: 98 | F8: 38 | G8: 20
A9: 3 | B9: Амгинская | C9: 11936 | D9: 9040 | E9: 2410 | F9: 1866 | G9: 2135 | H9: 761
A10: 4 | B10: Анабарская | C10: 1626 | D10: 1449 | E10: 421 | F10: 538 | G10: 177
A11: 5 | B11: Булунская | C11: 2228 | D11: 1989 | E11: 652 | F11: 567 | G11: 239
A12: 6 | B12: Верхневилюйская | C12: 13304 | D12: 10710 | E12: 3791 | F12: 2204 | G12: 2569 | H12: 25
A13: 7 | B13: Верхнеколымская | C13: 1053 | D13: 676 | E13: 225 | F13: 100 | G13: 377
A14: 8 | B14: Верхоянская | C14: 3281 | D14: 2796 | E14: 820 | F14: 508 | G14: 485
A15: 9 | B15: Вилюйская | C15: 6352 | D15: 6191 | E15: 1682 | F15: 1466 | G15: 161
A16: 10 | B16: Горная | C16: 6998 | D16: 5409 | E16: 1369 | F16: 1256 | G16: 880 | H16: 709
A17: 11 | B17: Жиганская | C17: 2827 | D17: 2252 | E17: 715 | F17: 487 | G17: 474 | H17: 101
A18: 12 | B18: Кобяйская | C18: 4543 | D18: 3460 | E18: 1428 | F18: 508 | G18: 1083
A19: 13 | B19: Ленская | C19: 2339 | D19: 2100 | E19: 751 | F19: 198 | G19: 239
A20: 14 | B20: Момская | C20: 2361 | D20: 2088 | E20: 460 | F20: 462 | G20: 273
A21: 15 | B21: Намская | C21: 15571 | D21: 13443 | E21: 4795 | F21: 3231 | G21: 2086 | H21: 42
A22: 16 | B22: Нижнеколымская | C22: 487 | D22: 475 | E22: 161 | F22: 107 | G22: 12
A23: 17 | B23: Нюрбинская | C23: 9348 | D23: 6362 | E23: 2417 | F23: 1186 | G23: 2986
A24: 18 | B24: Оймяконская | C24: 2105 | D24: 1751 | E24: 517 | F24: 382 | G24: 354
A25: 19 | B25: Олекминская | C25: 7833 | D25: 6626 | E25: 1820 | F25: 1282 | G25: 1207
A26: 20 | B26: Оленекская | C26: 3624 | D26: 3338 | E26: 1216 | F26: 352 | G26: 262 | H26: 24
A27: 21 | B27: Среднеколымская | C27: 2809 | D27: 2226 | E27: 654 | F27: 441 | G27: 583
A28: 22 | B28: Сунтарская | C28: 16467 | D28: 13331 | E28: 4964 | F28: 3292 | G28: 3124 | H28: 12
A29: 23 | B29: Таттинская | C29: 8552 | D29: 5537 | E29: 2140 | F29: 827 | G29: 3000 | H29: 15
A30: 24 | B30: Томпонская | C30: 2748 | D30: 2373 | E30: 1034 | F30: 535 | G30: 375
A31: 25 | B31: Усть-Алданская | C31: 19467 | D31: 11594 | E31: 3780 | F31: 2664 | G31: 7826 | H31: 47
A32: 26 | B32: Усть-Майская | C32: 1157 | D32: 1148 | E32: 428 | F32: 204 | G32: 9
A33: 27 | B33: Усть-Янская | C33: 1941 | D33: 1693 | E33: 555 | F33: 623 | G33: 248
A34: 28 | B34: Хангаласская | C34: 8733 | D34: 6223 | E34: 1707 | F34: 1203 | G34: 2510
A35: 29 | B35: Чурапчинская | C35: 15221 | D35: 11047 | E35: 2900 | F35: 2584 | G35: 4174
A36: 30 | B36: Мирнинская | C36: 976 | D36: 884 | E36: 329 | F36: 263 | G36: 92
A37: 31 | B37: Нерюнгринская | C37: 919 | D37: 852 | E37: 166 | F37: 175 | G37: 67
A38: 32 | B38: Эвено-Бытантайская | C38: 1420 | D38: 1024 | E38: 399 | F38: 193 | G38: 396
A39: 33 | B39: Якутская | C39: 6704 | D39: 6502 | E39: 2317 | F39: 1329 | G39: 202
A40: 34 | B40: Алданская | C40: 848 | D40: 724 | E40: 423 | F40: 179 | G40: 124
A41: 35 | B41: М.-Кангаласская | C41: 20121 | D41: 15142 | E41: 4654 | F41: 2614 | G41: 4879 | H41: 100
A42: 36 | B42: Бердигестях ДБ | C42: 1550 | D42: 1170 | E42: 1058 | F42: 61 | G42: 380
A43: 37 | B43: Алданский БИЦ | C43: 58 | D43: 58 | E43: 24 | F43: 10
A44: 38 | B44: Томмотский БИЦ | C44: 173 | D44: 149 | E44: 26 | F44: 40 | G44: 24
B45: Итого по РС(Я) | C45: =SUM(C7:C44) -> 209434 | D45: 163329 | E45: 53735 | F45: 34193 | G45: 44269 | H45: 1836

Sheet т.3
G1: Таблица 3
A2: Число посещений. Посещаемость
A3: № | B3: ЦБС | C3: число посещений | F3: посещаемость
C4: 2023 | D4: 2024 | E4: "+ -" | F4: 2023 | G4: 2024 | H4: "+ -"
A5: 1 | B5: Абыйская | C5: 30859 | D5: 34054 | E5: =D5-C5 -> 3195 | F5: 9.4 | G5: =т.3!D5/т.2!D6 -> 10.20191732 | H5: =G5 - F5 -> 0.8019173158
A6: 2 | B6: Аллаиховская | C6: 17204 | D6: 15420 | E6: =D6-C6 -> -1784 | F6: 12.5 | G6: =т.3!D6/т.2!D7 -> 11.26369613 | H6: -1.236303871
A7: 3 | B7: Амгинская | C7: 92494 | D7: 95405 | E7: 2911 | F7: 7.9 | G7: =т.3!D7/т.2!D8 -> 7.993046247 | H7: 0.09304624665
A8: 4 | B8: Анабарская | C8: 10323 | D8: 17117 | E8: 6794 | F8: 9.8 | G8: =т.3!D8/т.2!D9 -> 10.52706027 | H8: 0.7270602706
A9: 5 | B9: Булунская | C9: 89815 | D9: 93201 | E9: 3386 | F9: 12.8 | G9: =т.3!D9/т.2!D10 -> 13.23877841 | H9: 0.4387784091
A10: 6 | B10: Верхневилюйская | C10: 138534 | D10: 139038 | E10: 504 | F10: 10.4 | G10: =т.3!D10/т.2!D11 -> 10.45084185 | H10: 0.05084185207
A11: 7 | B11: Верхнеколымская | C11: 37621 | D11: 37263 | E11: -358 | F11: 11.2 | G11: =т.3!D11/т.2!D12 -> 10.89880082 | H11: -0.301199181
A12: 8 | B12: Верхоянская | C12: 77043 | D12: 81826 | E12: 4783 | F12: 10.9 | G12: =т.3!D12/т.2!D13 -> 11.64782918 | H12: 0.7478291815
A13: 9 | B13: Вилюйская | C13: 142739 | D13: 155407 | E13: 12668 | F13: 11.2 | G13: =т.3!D13/т.2!D14 -> 12.11750487 | H13: 0.9175048733
A14: 10 | B14: Горная | C14: 73524 | D14: 73233 | E14: -291 | F14: 11.1 | G14: =т.3!D14/т.2!D15 -> 10.4648471 | H14: -0.6351529008
A15: 11 | B15: Жиганская | C15: 18054 | D15: 26129 | E15: 8075 | F15: 5.2 | G15: =т.3!D15/т.2!D16 -> 9.242660064 | H15: 4.042660064
A16: 12 | B16: Кобяйская | C16: 114940 | D16: 123235 | E16: 8295 | F16: 11.4 | G16: =т.3!D16/т.2!D17 -> 12.74273601 | H16: 1.342736015
A17: 13 | B17: Ленская | C17: 173365 | D17: 165313 | E17: -8052 | F17: 9.8 | G17: =т.3!D17/т.2!D18 -> 10.01350778 | H17: 0.2135077836
A18: 14 | B18: Момская | C18: 19805 | D18: 21725 | E18: 1920 | F18: 9.1 | G18: =т.3!D18/т.2!D19 -> 9.201609488 | H18: 0.1016094875
A19: 15 | B19: Намская | C19: 144962 | D19: 139141 | E19: -5821 | F19: 9.3 | G19: =т.3!D19/т.2!D20 -> 8.935906493 | H19: -0.3640935072
A20: 16 | B20: Нижнеколымская | C20: 17916 | D20: 29155 | E20: 11239 | F20: 10.1 | G20: =т.3!D20/т.2!D21 -> 13.15065404 | H20: 3.050654037
A21: 17 | B21: Нюрбинская | C21: 154957 | D21: 150825 | E21: -4132 | F21: 8.3 | G21: =т.3!D21/т.2!D22 -> 8.683574184 | H21: 0.3835741839
A22: 18 | B22: Оймяконская | C22: 68228 | D22: 70606 | E22: 2378 | F22: 10.6 | G22: =т.3!D22/т.2!D23 -> 10.89935165 | H22: 0.2993516517
A23: 19 | B23: Олекминская | C23: 177362 | D23: 182264 | E23: 4902 | F23: 11.8 | G23: =т.3!D23/т.2!D24 -> 12.24810161 | H23: 0.4481016061
A24: 20 | B24: Оленекская | C24: 23069 | D24: 23073 | E24: 4 | F24: 7.3 | G24: =т.3!D24/т.2!D25 -> 6.366721854 | H24: -0.9332781457
A25: 21 | B25: Среднеколымская | C25: 35248 | D25: 37866 | E25: 2618 | F25: 8.3 | G25: =т.3!D25/т.2!D26 -> 7.470112448 | H25: -0.8298875518
A26: 22 | B26: Сунтарская | C26: 181302 | D26: 178982 | E26: -2320 | F26: 10.6 | G26: =т.3!D26/т.2!D27 -> 10.8691322 | H26: 0.2691322038
A27: 23 | B27: Таттинская | C27: 59820 | D27: 67852 | E27: 8032 | F27: 7.1 | G27: =т.3!D27/т.2!D28 -> 7.934050514 | H27: 0.8340505145
A28: 24 | B28: Томпонская | C28: 84011 | D28: 75535 | E28: -8476 | F28: 11.5 | G28: =т.3!D28/т.2!D29 -> 12.69282474 | H28: 1.192824735
A29: 25 | B29: Усть-Алданская | C29: 227316 | D29: 249174 | E29: 21858 | F29: 11.4 | G29: =т.3!D29/т.2!D30 -> 12.79981507 | H29: 1.399815072
A30: 26 | B30: Усть-Майская | C30: 72966 | D30: 69594 | E30: -3372 | F30: 16.5 | G30: =т.3!D30/т.2!D31 -> 15.60753532 | H30: -0.8924646782
A31: 27 | B31: Усть-Янская | C31: 31260 | D31: 42805 | E31: 11545 | F31: 5.9 | G31: =т.3!D31/т.2!D32 -> 7.966685278 | H31: 2.066685278
A32: 28 | B32: Хангаласская | C32: 212661 | D32: 204366 | E32: -8295 | F32: 9.1 | G32: =т.3!D32/т.2!D33 -> 8.399062962 | H32: -0.7009370376
A33: 29 | B33: Чурапчинская | C33: 150499 | D33: 162527 | E33: 12028 | F33: 9.8 | G33: =т.3!D33/т.2!D34 -> 10.67781355 | H33: 0.8778135471
A34: 30 | B34: Мирнинская | C34: 199240 | D34: 196444 | E34: -2796 | F34: 8.6 | G34: =т.3!D34/т.2!D35 -> 8.407978086 | H34: -0.1920219141
A35: 31 | B35: Нерюнгринская | C35: 102332 | D35: 110017 | E35: 7685 | F35: 7.8 | G35: =т.3!D35/т.2!D36 -> 8.365675614 | H35: 0.565675614
A36: 32 | B36: Эвено-Бытантай | C36: 21632 | D36: 25950 | E36: 4318 | F36: 15.2 | G36: =т.3!D36/т.2!D37 -> 18.27464789 | H36: 3.074647887
A37: 33 | B37: Якутская | C37: 432033 | D37: 490619 | E37: 58586 | F37: 6.1 | G37: =т.3!D37/т.2!D38 -> 6.809802071 | H37: 0.7098020709
A38: 34 | B38: Алданская | C38: 117919 | D38: 123800 | E38: =D38-C38 -> 5881 | F38: 11.7 | G38: =т.3!D38/т.2!D39 -> 12.47480854 | H38: =G38 - F38 -> 0.7748085449
A39: 35 | B39: М.-Кангаласская | C39: 162567 | D39: 165647 | E39: =D39-C39 -> 3080 | F39: 7.7 | G39: =т.3!D39/т.2!D40 -> 7.838309753 | H39: =G39 - F39 -> 0.1383097525
A40: 36 | B40: ГБ г.Нерюнгри | C40: 119048 | D40: 113859 | E40: -5189 | F40: 12.7 | G40: =т.3!D40/т.2!D41 -> 12.57415792 | H40: -0.1258420762
A41: 37 | B41: Бердигестях ДБ | C41: 21180 | D41: 24396 | E41: 3216 | F41: 13.7 | G41: =т.3!D41/т.2!D42 -> 15.73935484 | H41: 2.039354839
A42: 38 | B42: Б-ка ГО "п. Жатай" | C42: 25637 | D42: 27116 | E42: 1479 | F42: 9.6 | G42: =т.3!D42/т.2!D43 -> 10.27121212 | H42: 0.6712121212
A43: 39 | B43: Алданский БИЦ | C43: 38605 | D43: 40317 | E43: =D43-C43 -> 1712 | F43: 11.4 | G43: =т.3!D43/т.2!D44 -> 11.4406924 | H43: =G43 - F43 -> 0.04069239501
A44: 40 | B44: Томмотский БИЦ | C44: 61445 | D44: 65744 | E44: =D44-C44 -> 4299 | F44: 13.6 | G44: =т.3!D44/т.2!D45 -> 14.26426557 | H44: =G44 - F44 -> 0.6642655674
B45: Итого по МБ | C45: =SUM(C5:C44) -> 3979535 | D45: =SUM(D5:D44) -> 4146040 | E45: 166505 | F45: 9.3 | G45: =т.3!D45/т.2!D46 -> 9.693917394 | H45: 0.3939173944
B46: НБ РС(Я) | C46: 359792 | D46: 489477 | E46: 129685 | F46: 10 | G46: =т.3!D46/т.2!D47 -> 13.47604757 | H46: 3.476047574
B47: Филиал НБ "ДТК" | C47: 80326 | D47: 94745 | E47: 14419 | F47: 6.8 | G47: =т.3!D47/т.2!D48 -> 7.480852744 | H47: 0.6808527438
B48: ЯРСБНС | C48: 12671 | D48: 15386 | E48: 2715 | F48: 5.3 | G48: =т.3!D48/т.2!D49 -> 6.139664804 | H48: 0.8396648045
B49: Итого по РС(Я) | C49: =SUM(C45:C48) -> 4432324 | D49: =SUM(D45:D48) -> 4745648 | E49: =SUM(E45:E48) -> 313324 | F49: 9.3 | G49: =т.3!D49/т.2!D50 -> 9.903520122 | H49: =G49-F49 -> 0.6035201215

Sheet т.4
J1: Таблица 4
A2: Движение библиотечного фонда .
C3: сост. на | D3: поступило | G3: выбыло | J3: сост. на
A4: № | B4: ЦБС | C4: 2024-01-01 | D4: всего (экз) | E4: из них вновь приобрет. (экз). | F4: из них фонд реорг.б-к | G4: (экз.) | H4: из них без учета фонда р/б | I4: из них фонд реорг.б-к | J4: 2025-01-01
A5: 1 | B5: Абыйская | C5: 74584 | D5: 2629 | E5: 2629 | G5: 2046 | H5: 2046 | J5: =C5+D5-G5 -> 75167
A6: 2 | B6: Аллаиховская | C6: 78911 | D6: 721 | E6: 721 | J6: 79632
A7: 3 | B7: Амгинская | C7: 187564 | D7: 9235 | E7: 9235 | G7: 5813 | H7: 5813 | J7: 190986
A8: 4 | B8: Анабарская | C8: 26584 | D8: 1677 | E8: 1677 | G8: 1331 | H8: 1331 | J8: 26930
A9: 5 | B9: Булунская | C9: 148082 | D9: 1330 | E9: 1330 | G9: 456 | H9: 456 | J9: 148956
A10: 6 | B10: Верхневилюйская | C10: 227655 | D10: 5918 | E10: 5918 | G10: 9716 | H10: 1581 | I10: 8135 | J10: 223857
A11: 7 | B11: Верхнеколымская | C11: 108250 | D11: 3257 | E11: 3257 | G11: 3206 | H11: 3206 | J11: 108301
A12: 8 | B12: Верхоянская | C12: 219431 | D12: 5027 | E12: 5027 | G12: 7213 | H12: 7213 | J12: 217245
A13: 9 | B13: Вилюйская | C13: 271625 | D13: 4486 | E13: 4486 | G13: 5170 | H13: 5170 | J13: 270941
A14: 10 | B14: Горная | C14: 102615 | D14: 2654 | E14: 2654 | G14: 2091 | H14: 2091 | J14: 103178
A15: 11 | B15: Жиганская | C15: 59772 | D15: 2260 | E15: 2260 | G15: 409 | H15: 409 | J15: 61623
A16: 12 | B16: Кобяйская | C16: 201285 | D16: 3607 | E16: 3607 | G16: 996 | H16: 996 | J16: 203896
A17: 13 | B17: Ленская | C17: 214845 | D17: 8949 | E17: 8949 | G17: 5710 | H17: 5710 | J17: 218084
A18: 14 | B18: Момская | C18: 90507 | D18: 2429 | E18: 2429 | G18: 3325 | H18: 3325 | J18: 89611
A19: 15 | B19: Намская | C19: 195788 | D19: 11991 | E19: 11991 | G19: 7717 | H19: 7717 | J19: 200062
A20: 16 | B20: Нижнеколымская | C20: 99433 | D20: 2225 | E20: 2225 | G20: 1164 | H20: 1164 | J20: 100494
A21: 17 | B21: Нюрбинская | C21: 338964 | D21: 2975 | E21: 2975 | G21: 2126 | H21: 2126 | J21: 339813
A22: 18 | B22: Оймяконская | C22: 113403 | D22: 2011 | E22: 2001 | G22: 296 | H22: 296 | J22: 115118
A23: 19 | B23: Олекминская | C23: 233168 | D23: 5538 | E23: 5101 | G23: 5299 | H23: 5299 | J23: 233407
A24: 20 | B24: Оленекская | C24: 53353 | D24: 1200 | E24: 1200 | G24: 3266 | H24: 3266 | J24: 51287
A25: 21 | B25: Среднеколымская | C25: 125084 | D25: 6617 | E25: 6617 | J25: 131701
A26: 22 | B26: Сунтарская | C26: 234807 | D26: 13717 | E26: 13717 | G26: 9881 | H26: 9881 | J26: 238643
A27: 23 | B27: Таттинская | C27: 212228 | D27: 7658 | E27: 7658 | G27: 2291 | H27: 2291 | J27: 217595
A28: 24 | B28: Томпонская | C28: 178687 | D28: 2520 | E28: 2520 | G28: 1014 | H28: 1014 | J28: 180193
A29: 25 | B29: Усть-Алданская | C29: 405489 | D29: 32358 | E29: 12022 | F29: 20336 | G29: 27802 | H29: 7466 | I29: 20336 | J29: 410045
A30: 26 | B30: Усть-Майская | C30: 127496 | D30: 5524 | E30: 5524 | G30: 4564 | H30: 4564 | J30: 128456
A31: 27 | B31: Усть-Янская | C31: 174635 | D31: 1834 | E31: 1834 | J31: 176469
A32: 28 | B32: Хангаласская | C32: 322738 | D32: 12061 | E32: 12061 | G32: 6026 | H32: 6026 | J32: 328773
A33: 29 | B33: Чурапчинская | C33: 274159 | D33: 5603 | E33: 5603 | G33: 4985 | H33: 4985 | J33: 274777
A34: 30 | B34: Мирнинская | C34: 224353 | D34: 8156 | E34: 8156 | G34: 9818 | H34: 9818 | J34: 222691
A35: 31 | B35: Нерюнгринская | C35: 146192 | D35: 5687 | E35: 5687 | G35: 4180 | H35: 4180 | J35: 147699
A36: 32 | B36: Эвено-Бытантайская | C36: 42786 | D36: 717 | E36: 717 | G36: 894 | H36: 894 | J36: 42609
A37: 33 | B37: Якутская | C37: 464919 | D37: 29248 | E37: 26460 | G37: 20829 | H37: 20829 | J37: 473338
A38: 34 | B38: Алданская | C38: 129862 | D38: 8366 | E38: 8366 | G38: 5574 | H38: 5574 | J38: 132654
A39: 35 | B39: Мегино-Кангаласская | C39: 455454 | D39: 5349 | E39: 5349 | G39: 3154 | H39: 3154 | J39: 457649
A40: 36 | B40: ГБ г.Нерюнгри | C40: 107208 | D40: 3326 | E40: 3326 | G40: 3010 | H40: 3010 | J40: 107524
A41: 37 | B41: Бердигестях ДБ | C41: 17525 | D41: 364 | E41: 364 | G41: 1114 | H41: 1114 | J41: 16775
A42: 38 | B42: Б-ка ГО "Жатай" | C42: 21003 | D42: 255 | E42: 255 | G42: 30 | H42: 30 | J42: 21228
A43: 39 | B43: Алданский БИЦ | C43: 37041 | D43: 1904 | E43: 1904 | G43: 1851 | H43: 1851 | J43: 37094
A44: 40 | B44: Томмотский БИЦ | C44: 43114 | D44: 3088 | E44: 3088 | G44: 8552 | H44: 2856 | I44: 5696 | J44: 37650
B45: Итого по МБ | C45: =SUM(C5:C44) -> 6790599 | D45: 234471 | E45: 210900 | F45: 20336 | G45: 182919 | H45: 148752 | I45: 34167 | J45: 6842151
B46: НБ РС(Я) | C46: 1729529 | D46: 19197 | E46: 19197 | G46: 6129 | H46: 6129 | J46: 1742597
B47: Филиал НБ "ДТК" | C47: 177249 | D47: 2596 | E47: 2596 | G47: 997 | H47: 997 | J47: 178848
B48: ЯРСБНС | C48: 154071 | D48: 4010 | E48: 4010 | G48: 2000 | H48: 2000 | J48: 156081
B49: Итого по РС(Я) | C49: =SUM(C45:C48) -> 8851448 | D49: 260274 | E49: 236703 | F49: 20336 | G49: 192045 | H49: 157878 | I49: 34167 | J49: 8919677

Sheet т.4.1
G1: Таблица 4.1
A2: Библиотечный фонд
A4: № | B4: ЦБС | C4: 2023 | D4: 2024 | E4: "+ -" | F4: в городе | G4: в сельск.местн.
A5: 1 | B5: Абыйская | C5: 74584 | D5: 75167 | E5: =D5-C5 -> 583 | F5: =D5-G5 -> 32009 | G5: 43158
A6: 2 | B6: Аллаиховская | C6: 78911 | D6: 79632 | E6: =D6-C6 -> 721 | F6: =D6-G6 -> 48290 | G6: 31342
A7: 3 | B7: Амгинская | C7: 187564 | D7: 190986 | E7: 3422 | F7: =D7-G7 -> 0 | G7: 190986
A8: 4 | B8: Анабарская | C8: 26584 | D8: 26930 | E8: 346 | F8: =D8-G8 -> 0 | G8: 26930
A9: 5 | B9: Булунская | C9: 148082 | D9: 148956 | E9: 874 | F9: 69062 | G9: 79894
A10: 6 | B10: Верхневилюйская | C10: 227655 | D10: 223857 | E10: -3798 | F10: 0 | G10: 223857
A11: 7 | B11: Верхнеколымская | C11: 108250 | D11: 108301 | E11: 51 | F11: 61406 | G11: 46895
A12: 8 | B12: Верхоянская | C12: 219431 | D12: 217245 | E12: -2186 | F12: 90208 | G12: 127037
A13: 9 | B13: Вилюйская | C13: 271625 | D13: 270941 | E13: -684 | F13: 89186 | G13: 181755
A14: 10 | B14: Горная | C14: 102615 | D14: 103178 | E14: 563 | F14: 0 | G14: 103178
A15: 11 | B15: Жиганская | C15: 59772 | D15: 61623 | E15: 1851 | F15: 0 | G15: 61623
A16: 12 | B16: Кобяйская | C16: 201285 | D16: 203896 | E16: 2611 | F16: 50957 | G16: 152939
A17: 13 | B17: Ленская | C17: 214845 | D17: 218084 | E17: 3239 | F17: 124058 | G17: 94026
A18: 14 | B18: Момская | C18: 90507 | D18: 89611 | E18: -896 | F18: 0 | G18: 89611
A19: 15 | B19: Намская | C19: 195788 | D19: 200062 | E19: 4274 | F19: 0 | G19: 200062
A20: 16 | B20: Нижнеколымская | C20: 99433 | D20: 100494 | E20: 1061 | F20: 67919 | G20: 32575
A21: 17 | B21: Нюрбинская | C21: 338964 | D21: 339813 | E21: 849 | F21: 88301 | G21: 251512
A22: 18 | B22: Оймяконская | C22: 113403 | D22: 115118 | E22: 1715 | F22: 42955 | G22: 72163
A23: 19 | B23: Олекминская | C23: 233168 | D23: 233407 | E23: 239 | F23: 41825 | G23: 191582
A24: 20 | B24: Оленекская | C24: 53353 | D24: 51287 | E24: -2066 | F24: 0 | G24: 51287
A25: 21 | B25: Среднеколымская | C25: 125084 | D25: 131701 | E25: 6617 | F25: 51610 | G25: 80091
A26: 22 | B26: Сунтарская | C26: 234807 | D26: 238643 | E26: 3836 | F26: 0 | G26: 238643
A27: 23 | B27: Таттинская | C27: 212228 | D27: 217595 | E27: 5367 | F27: 0 | G27: 217595
A28: 24 | B28: Томпонская | C28: 178687 | D28: 180193 | E28: 1506 | F28: 76547 | G28: 103646
A29: 25 | B29: Усть-Алданская | C29: 405489 | D29: 410045 | E29: 4556 | F29: 0 | G29: 410045
A30: 26 | B30: Усть-Майская | C30: 127496 | D30: 128456 | E30: 960 | F30: 82702 | G30: 45754
A31: 27 | B31: Усть-Янская | C31: 174635 | D31: 176469 | E31: 1834 | F31: 86823 | G31: 89646
A32: 28 | B32: Хангаласская | C32: 322738 | D32: 328773 | E32: 6035 | F32: 114670 | G32: 214103
A33: 29 | B33: Чурапчинская | C33: 274159 | D33: 274777 | E33: 618 | F33: 0 | G33: 274777
A34: 30 | B34: Мирнинская | C34: 224353 | D34: 222691 | E34: -1662 | F34: 186268 | G34: 36423
A35: 31 | B35: Нерюнгринская | C35: 146192 | D35: 147699 | E35: 1507 | F35: 123375 | G35: 24324
A36: 32 | B36: Эвено-Бытантайская | C36: 42786 | D36: 42609 | E36: -177 | F36: 0 | G36: 42609
A37: 33 | B37: Якутская | C37: 464919 | D37: 473338 | E37: =D37-C37 -> 8419 | F37: =D37-G37 -> 408308 | G37: 65030
A38: 34 | B38: Алданская | C38: 129862 | D38: 132654 | E38: =D38-C38 -> 2792 | F38: 89727 | G38: 42927
A39: 35 | B39: Мегино-Кангаласская | C39: 455454 | D39: 457649 | E39: =D39-C39 -> 2195 | F39: 13187 | G39: 444462
A40: 36 | B40: ГБ г.Нерюнгри | C40: 107208 | D40: 107524 | E40: 316 | F40: 107524 | G40: 0
A41: 37 | B41: Бердигестях ДБ | C41: 17525 | D41: 16775 | E41: -750 | F41: 0 | G41: 16775
A42: 38 | B42: Б-ка ГО "п. Жатай" | C42: 21003 | D42: 21228 | E42: =D42-C42 -> 225 | F42: 21228 | G42: 0
A43: 39 | B43: Алданский БИЦ | C43: 37041 | D43: 37094 | E43: =D43-C43 -> 53 | F43: =D43-G43 -> 29519 | G43: 7575
A44: 40 | B44: Томмотский БИЦ | C44: 43114 | D44: 37650 | E44: -5464 | F44: 37650
B45: Итого по МБ | C45: =SUM(C5:C44) -> 6790599 | D45: =SUM(D5:D44) -> 6842151 | E45: 51552 | F45: =SUM(F5:F44) -> 2235314 | G45: =SUM(G5:G44) -> 4606837
B46: НБ РС(Я) | C46: 1729529 | D46: 1742597 | E46: 13068 | F46: 1742597 | G46: 0
B47: Филиал НБ "ДТК" | C47: 177249 | D47: 178848 | E47: 1599 | F47: 178848 | G47: 0
B48: ЯРСБНС | C48: 154071 | D48: 156081 | E48: 2010 | F48: 156081 | G48: 0
B49: Итого по РС(Я) | C49: =SUM(C45:C48) -> 8851448 | D49: =SUM(D45:D48) -> 8919677 | E49: 68229 | F49: =SUM(F45:F48) -> 4312840 | G49: =SUM(G45:G48) -> 4606837

Sheet т.4.2
J1: Таблица 4.2
A2: Новые поступления в библиотечный фонд (экз.)
E3: в том числе | I3: спец. | J3: на яз. | K3: на
A4: № | B4: ЦБС | C4: 2023 | D4: 2024 | E4: печ.изд. | F4: из них | G4: эл.док. | H4: док. на | J4: нар.РФ | K4: иностр. | L4: "+ -"
E5: неопуб. | F5: книг | G5: съемн | H5: др.вид. | I5: док. | J5: кр.рус.яз. | K5: яз.
A6: 1 | B6: Абыйская | C6: 1972 | D6: 2629 | E6: 2618 | F6: 1482 | G6: 11 | J6: 1013 | L6: =D6-C6 -> 657
A7: 2 | B7: Аллаиховская | C7: 562 | D7: 721 | E7: 720 | F7: 535 | H7: 1 | J7: 188 | L7: 159
A8: 3 | B8: Амгинская | C8: 6741 | D8: 9235 | E8: 9194 | F8: 4722 | G8: 41 | I8: 2 | J8: 4168 | K8: 1 | L8: 2494
A9: 4 | B9: Анабарская | C9: 871 | D9: 1677 | E9: 1677 | F9: 1391 | I9: 18 | J9: 193 | L9: 806
A10: 5 | B10: Булунская | C10: 1052 | D10: 1330 | E10: 1327 | F10: 952 | G10: 3 | I10: 3 | J10: 352 | L10: 278
A11: 6 | B11: Верхневилюйская | C11: 5617 | D11: 5918 | E11: 5918 | F11: 4439 | J11: 3832 | L11: 301
A12: 7 | B12: Верхнеколымская | C12: 3339 | D12: 3257 | E12: 3257 | F12: 987 | J12: 121 | L12: -82
A13: 8 | B13: Верхоянская | C13: 8774 | D13: 5027 | E13: 5018 | F13: 2295 | H13: 9 | J13: 2606 | L13: -3747
A14: 9 | B14: Вилюйская | C14: 2880 | D14: 4486 | E14: 4449 | F14: 3761 | G14: 37 | I14: 2 | J14: 2405 | L14: 1606
A15: 10 | B15: Горная | C15: 2400 | D15: 2654 | E15: 2654 | F15: 1596 | J15: 1499 | L15: 254
A16: 11 | B16: Жиганская | C16: 2327 | D16: 2260 | E16: 2259 | F16: 1337 | G16: 1 | I16: 2 | J16: 12 | L16: -67
A17: 12 | B17: Кобяйская | C17: 1977 | D17: 3607 | E17: 3607 | F17: 1574 | J17: 1677 | L17: 1630
A18: 13 | B18: Ленская | C18: 124 | D18: 8949 | E18: 8949 | F18: 5097 | J18: 1055 | L18: 8825
A19: 14 | B19: Момская | C19: 2964 | D19: 2429 | E19: 2416 | F19: 1587 | H19: 13 | J19: 2416 | L19: -535
A20: 15 | B20: Намская | C20: 8144 | D20: 11991 | E20: 11933 | F20: 8044 | G20: 58 | J20: 4964 | L20: 3847
A21: 16 | B21: Нижнеколымская | C21: 1663 | D21: 2225 | E21: 2223 | F21: 564 | G21: 2 | J21: 324 | L21: 562
A22: 17 | B22: Нюрбинская | C22: 5734 | D22: 2975 | E22: 2975 | F22: 2040 | J22: 1812 | L22: -2759
A23: 18 | B23: Оймяконская | C23: 1309 | D23: 2001 | E23: 1996 | F23: 1697 | G23: 5 | I23: 4 | J23: 1142 | L23: 692
A24: 19 | B24: Олекминская | C24: 5069 | D24: 5101 | E24: 5101 | F24: 2254 | I24: 2 | J24: 791 | L24: 32
A25: 20 | B25: Оленекская | C25: 1834 | D25: 1200 | E25: 1200 | F25: 1200 | J25: 216 | L25: -634
A26: 21 | B26: Среднеколымская | C26: 3502 | D26: 6617 | E26: 6617 | F26: 2112 | J26: 2641 | L26: 3115
A27: 22 | B27: Сунтарская | C27: 5142 | D27: 13717 | E27: 13716 | F27: 4897 | G27: 1 | I27: 43 | J27: 6409 | L27: 8575
A28: 23 | B28: Таттинская | C28: 4804 | D28: 7658 | E28: 7616 | F28: 4382 | G28: 42 | J28: 3061 | L28: 2854
A29: 24 | B29: Томпонская | C29: 2818 | D29: 2520 | E29: 2520 | F29: 1412 | J29: 327 | L29: -298
A30: 25 | B30: Усть-Алданская | C30: 12094 | D30: 12022 | E30: 12015 | F30: 3741 | G30: 7 | J30: 3839 | K30: 14 | L30: -72
A31: 26 | B31: Усть-Майская | C31: 4982 | D31: 5524 | E31: 5524 | F31: 1700 | J31: 525 | L31: 542
A32: 27 | B32: Усть-Янская | C32: 2564 | D32: 1834 | E32: 1834 | F32: 1009 | J32: 136 | L32: -730
A33: 28 | B33: Хангаласская | C33: 10013 | D33: 12061 | E33: 12061 | F33: 7654 | J33: 3911 | L33: 2048
A34: 29 | B34: Чурапчинская | C34: 4572 | D34: 5603 | E34: 5561 | F34: 3171 | G34: 42 | J34: 3457 | L34: 1031
A35: 30 | B35: Мирнинская | C35: 8345 | D35: 8156 | E35: 8151 | F35: 4808 | G35: 5 | I35: 7 | J35: 944 | L35: -189
A36: 31 | B36: Нерюнгринская | C36: 4802 | D36: 5687 | E36: 5687 | F36: 3786 | I36: 29 | J36: 297 | L36: 885
A37: 32 | B37: Эвено-Бытантайская | C37: 764 | D37: 717 | E37: 717 | F37: 511 | J37: 353 | L37: -47
A38: 33 | B38: Якутская | C38: 14674 | D38: 26460 | E38: 26457 | F38: 14569 | G38: 3 | J38: 2420 | K38: 2 | L38: =D38-C38 -> 11786
A39: 34 | B39: Алданская | C39: 9995 | D39: 8366 | E39: 8363 | F39: 6284 | G39: 3 | I39: 2 | J39: 765 | K39: 30 | L39: =D39-C39 -> -1629
A40: 35 | B40: Мег.-Кангаласская | C40: 4887 | D40: 5349 | E40: 5291 | F40: 4380 | G40: 58 | J40: 3241 | K40: 1 | L40: =D40-C40 -> 462
A41: 36 | B41: ГБ г.Нерюнгри | C41: 2233 | D41: 3326 | E41: 3326 | F41: 1868 | I41: 23 | J41: 73 | L41: 1093
A42: 37 | B42: Бердигестях ДБ | C42: 259 | D42: 364 | E42: 355 | F42: 242 | G42: 9 | J42: 157 | L42: 105
A43: 38 | B43: Б-ка ГО "Жатай" | D43: 255 | E43: 255 | F43: 255 | J43: 56 | L43: =D43-C43 -> 255
A44: 39 | B44: Алданский БИЦ | C44: 2783 | D44: 1904 | E44: 1904 | F44: 1455 | J44: 136 | K44: 9 | L44: -879
A45: 40 | B45: Томмотский БИЦ | C45: 3890 | D45: 3088 | E45: 3083 | F45: 1713 | H45: 5 | J45: 155 | K45: 7 | L45: -802
B46: Итого по МБ | C46: =SUM(C6:C45) -> 168476 | D46: =SUM(D6:D45) -> 210900 | E46: 210544 | F46: 117503 | G46: 328 | H46: 28 | I46: 137 | J46: 63689 | K46: 64 | L46: 42424
B47: НБ РС(Я) | C47: 29936 | D47: 19197 | E47: 19138 | F47: 13943 | G47: 48 | H47: 11 | I47: 24 | J47: 6896 | K47: 199 | L47: -10739
B48: Филиал НБ "ДТК" | C48: 2308 | D48: 2596 | E48: 2596 | F48: 1953 | I48: 127 | J48: 316 | L48: 288
B49: ЯРСБНС | C49: 3938 | D49: 4010 | E49: 1441 | F49: 830 | G49: 1394 | H49: 1175 | I49: 2940 | J49: 556 | L49: 72
B50: ВСЕГО | C50: =SUM(C46:C49) -> 204658 | D50: =SUM(D46:D49) -> 236703 | E50: 233719 | F50: =SUM(F46:F49) -> 134229 | G50: 1770 | H50: =SUM(H46:H49) -> 1214 | I50: =SUM(I46:I49) -> 3228 | J50: 71457 | K50: =SUM(K46:K49) -> 263 | L50: 32045

Sheet т.5
F1: Таблица 5
A2: Относительные показатели библиотек республики
A4: № | B4: ЦБС | C4: документообесп. жителей | D4: документообесп. польз. | E4: обращаемость библ.фонда | F4: обновляемость библ.фонда
A5: 1 | B5: Абыйская | C5: =(т.4!J5/т.1!C8)/1000 -> 20.31540541 | D5: ='т.4.1'!D5/т.2!D6 -> 22.518574 | E5: =т.6!D5/'т.4.1'!D5 -> 1.286774781 | F5: ='[1]т.4.2'!D6/'т.4.1'!D5*100 -> 2.39067676
A6: 2 | B6: Аллаиховская | C6: =(т.4!J6/т.1!C9)/1000 -> 33.18 | D6: ='т.4.1'!D6/т.2!D7 -> 58.16800584 | E6: =т.6!D6/'т.4.1'!D6 -> 0.5989175206 | F6: ='т.4.2'!D7/'т.4.1'!D6*100 -> 0.9054149086
A7: 3 | B7: Амгинская | C7: =(т.4!J7/т.1!C10)/1000 -> 11.43628743 | D7: ='т.4.1'!D7/т.2!D8 -> 16.0008378 | E7: =т.6!D7/'т.4.1'!D7 -> 1.2997759 | F7: ='т.4.2'!D8/'т.4.1'!D7*100 -> 4.835432964
A8: 4 | B8: Анабарская | C8: =(т.4!J8/т.1!C11)/1000 -> 7.694285714 | D8: ='т.4.1'!D8/т.2!D9 -> 16.56211562 | E8: =т.6!D8/'т.4.1'!D8 -> 1.146379502 | F8: ='т.4.2'!D9/'т.4.1'!D8*100 -> 6.227255848
A9: 5 | B9: Булунская | C9: =(т.4!J9/т.1!C12)/1000 -> 18.38962963 | D9: ='т.4.1'!D9/т.2!D10 -> 21.15852273 | E9: =т.6!D9/'т.4.1'!D9 -> 1.07756653 | F9: ='т.4.2'!D10/'т.4.1'!D9*100 -> 0.8928811193
A10: 6 | B10: Верхневилюйская | C10: =(т.4!J10/т.1!C13)/1000 -> 10.81434783 | D10: ='т.4.1'!D10/т.2!D11 -> 16.82629284 | E10: =т.6!D10/'т.4.1'!D10 -> 1.408966438 | F10: ='т.4.2'!D11/'т.4.1'!D10*100 -> 2.643651974
A11: 7 | B11: Верхнеколымская | C11: =(т.4!J11/т.1!C14)/1000 -> 29.27054054 | D11: ='т.4.1'!D11/т.2!D12 -> 31.67622112 | E11: =т.6!D11/'т.4.1'!D11 -> 0.797351825 | F11: ='т.4.2'!D12/'т.4.1'!D11*100 -> 3.007359119
A12: 8 | B12: Верхоянская | C12: =(т.4!J12/т.1!C15)/1000 -> 21.7245 | D12: ='т.4.1'!D12/т.2!D13 -> 30.92455516 | E12: =т.6!D12/'т.4.1'!D12 -> 0.7219590785 | F12: ='т.4.2'!D13/'т.4.1'!D12*100 -> 2.313977307
A13: 9 | B13: Вилюйская | C13: =(т.4!J13/т.1!C16)/1000 -> 10.75162698 | D13: ='т.4.1'!D13/т.2!D14 -> 21.1260039 | E13: =т.6!D13/'т.4.1'!D13 -> 1.284202096 | F13: ='т.4.2'!D14/'т.4.1'!D13*100 -> 1.655711022
A14: 10 | B14: Горная | C14: 10 | D14: ='т.4.1'!D14/т.2!D15 -> 14.74392684 | E14: =т.6!D14/'т.4.1'!D14 -> 1.647560526 | F14: ='т.4.2'!D15/'т.4.1'!D14*100 -> 2.572253775
A15: 11 | B15: Жиганская | C15: =(т.4!J15/т.1!C18)/1000 -> 15.40575 | D15: ='т.4.1'!D15/т.2!D16 -> 21.7980191 | E15: =т.6!D15/'т.4.1'!D15 -> 0.8056894341 | F15: ='т.4.2'!D16/'т.4.1'!D15*100 -> 3.667461824
A16: 12 | B16: Кобяйская | C16: =(т.4!J16/т.1!C19)/1000 -> 18.536 | D16: ='т.4.1'!D16/т.2!D17 -> 21.08323855 | E16: =т.6!D16/'т.4.1'!D16 -> 0.8634156629 | F16: ='т.4.2'!D17/'т.4.1'!D16*100 -> 1.769039118
A17: 13 | B17: Ленская | C17: =(т.4!J17/т.1!C20)/1000 -> 6.857987421 | D17: ='т.4.1'!D17/т.2!D18 -> 13.21000666 | E17: =т.6!D17/'т.4.1'!D17 -> 1.620751637 | F17: ='т.4.2'!D18/'т.4.1'!D17*100 -> 4.10346472
A18: 14 | B18: Момская | C18: =(т.4!J18/т.1!C21)/1000 -> 23.58184211 | D18: ='т.4.1'!D18/т.2!D19 -> 37.95468022 | E18: =т.6!D18/'т.4.1'!D18 -> 0.4901184006 | F18: ='т.4.2'!D19/'т.4.1'!D18*100 -> 2.710604725
A19: 15 | B19: Намская | C19: =(т.4!J19/т.1!C22)/1000 -> 7.97059761 | D19: ='т.4.1'!D19/т.2!D20 -> 12.84837197 | E19: =т.6!D19/'т.4.1'!D19 -> 1.745993742 | F19: ='т.4.2'!D20/'т.4.1'!D19*100 -> 5.993641971
A20: 16 | B20: Нижнеколымская | C20: =(т.4!J20/т.1!C23)/1000 -> 23.92714286 | D20: ='т.4.1'!D20/т.2!D21 -> 45.32882273 | E20: =т.6!D20/'т.4.1'!D20 -> 0.4951738412 | F20: ='т.4.2'!D21/'т.4.1'!D20*100 -> 2.214062531
A21: 17 | B21: Нюрбинская | C21: =(т.4!J21/т.1!C24)/1000 -> 14.90407895 | D21: ='т.4.1'!D21/т.2!D22 -> 19.56433876 | E21: =т.6!D21/'т.4.1'!D21 -> 1.001115319 | F21: ='т.4.2'!D22/'т.4.1'!D21*100 -> 0.8754815148
A22: 18 | B22: Оймяконская | C22: =(т.4!J22/т.1!C25)/1000 -> 15.14710526 | D22: ='т.4.1'!D22/т.2!D23 -> 17.77060821 | E22: =т.6!D22/'т.4.1'!D22 -> 0.9574697267 | F22: ='т.4.2'!D23/'т.4.1'!D22*100 -> 1.738216439
A23: 19 | B23: Олекминская | C23: =(т.4!J23/т.1!C26)/1000 -> 11.38570732 | D23: ='т.4.1'!D23/т.2!D24 -> 15.68490021 | E23: =т.6!D23/'т.4.1'!D23 -> 1.285317064 | F23: ='т.4.2'!D24/'т.4.1'!D23*100 -> 2.185452878
A24: 20 | B24: Оленекская | C24: =(т.4!J24/т.1!C27)/1000 -> 11.65613636 | D24: ='т.4.1'!D24/т.2!D25 -> 14.15204194 | E24: =т.6!D24/'т.4.1'!D24 -> 0.8739446643 | F24: ='т.4.2'!D25/'т.4.1'!D24*100 -> 2.339774212
A25: 21 | B25: Среднеколымская | C25: =(т.4!J25/т.1!C28)/1000 -> 19.65686567 | D25: ='т.4.1'!D25/т.2!D26 -> 25.98165319 | E25: =т.6!D25/'т.4.1'!D25 -> 0.4272860495 | F25: ='т.4.2'!D26/'т.4.1'!D25*100 -> 5.024259497
A26: 22 | B26: Сунтарская | C26: =(т.4!J26/т.1!C29)/1000 -> 10.74968468 | D26: ='т.4.1'!D26/т.2!D27 -> 14.49219651 | E26: =т.6!D26/'т.4.1'!D26 -> 1.271417976 | F26: ='т.4.2'!D27/'т.4.1'!D26*100 -> 5.747916344
A27: 23 | B27: Таттинская | C27: =(т.4!J27/т.1!C30)/1000 -> 12.95208333 | D27: ='т.4.1'!D27/т.2!D28 -> 25.44375585 | E27: =т.6!D27/'т.4.1'!D27 -> 0.794250787 | F27: ='т.4.2'!D28/'т.4.1'!D27*100 -> 3.519382339
A28: 24 | B28: Томпонская | C28: =(т.4!J28/т.1!C31)/1000 -> 16.53146789 | D28: ='т.4.1'!D28/т.2!D29 -> 30.27944883 | E28: =т.6!D28/'т.4.1'!D28 -> 0.7714006648 | F28: ='т.4.2'!D29/'т.4.1'!D28*100 -> 1.398500497
A29: 25 | B29: Усть-Алданская | C29: =(т.4!J29/т.1!C32)/1000 -> 18.63840909 | D29: ='т.4.1'!D29/т.2!D30 -> 21.0635948 | E29: =т.6!D29/'т.4.1'!D29 -> 0.994186004 | F29: ='т.4.2'!D30/'т.4.1'!D29*100 -> 2.931873331
A30: 26 | B30: Усть-Майская | C30: =(т.4!J30/т.1!C33)/1000 -> 17.59671233 | D30: ='т.4.1'!D30/т.2!D31 -> 28.80825297 | E30: =т.6!D30/'т.4.1'!D30 -> 1.148969297 | F30: ='т.4.2'!D31/'т.4.1'!D30*100 -> 4.300305163
A31: 27 | B31: Усть-Янская | C31: =(т.4!J31/т.1!C34)/1000 -> 26.33865672 | D31: ='т.4.1'!D31/т.2!D32 -> 32.84366276 | E31: =т.6!D31/'т.4.1'!D31 -> 0.5201593481 | F31: ='т.4.2'!D32/'т.4.1'!D31*100 -> 1.03927602
A32: 28 | B32: Хангаласская | C32: =(т.4!J32/т.1!C35)/1000 -> 9.585218659 | D32: ='т.4.1'!D32/т.2!D33 -> 13.51195956 | E32: =т.6!D32/'т.4.1'!D32 -> 1.166698604 | F32: ='т.4.2'!D33/'т.4.1'!D32*100 -> 3.668488592
A33: 29 | B33: Чурапчинская | C33: =(т.4!J33/т.1!C36)/1000 -> 12.60444954 | D33: ='т.4.1'!D33/т.2!D34 -> 18.05249327 | E33: =т.6!D33/'т.4.1'!D33 -> 1.209508074 | F33: ='т.4.2'!D34/'т.4.1'!D33*100 -> 2.039108077
A34: 30 | B34: Мирнинская | C34: =(т.4!J34/т.1!C37)/1000 -> 3.105871688 | D34: ='т.4.1'!D34/т.2!D35 -> 9.531373053 | E34: =т.6!D34/'т.4.1'!D34 -> 2.418157896 | F34: ='т.4.2'!D35/'т.4.1'!D34*100 -> 3.662474011
A35: 31 | B35: Нерюнгринская | C35: 3.7 | D35: ='т.4.1'!D35/т.2!D36 -> 11.23100905 | E35: =т.6!D35/'т.4.1'!D35 -> 2.04859884 | F35: ='т.4.2'!D36/'т.4.1'!D35*100 -> 3.850398445
A36: 32 | B36: Эвено-Бытантайская | C36: =(т.4!J36/т.1!C39)/1000 -> 14.203 | D36: ='т.4.1'!D36/т.2!D37 -> 30.00633803 | E36: =т.6!D36/'т.4.1'!D36 -> 0.905536389 | F36: ='т.4.2'!D37/'т.4.1'!D36*100 -> 1.682743082
A37: 33 | B37: Якутская | C37: =(т.4!J37/т.1!C40)/1000 -> 1.229449351 | D37: ='т.4.1'!D37/т.2!D38 -> 6.569941426 | E37: =т.6!D37/'т.4.1'!D37 -> 3.132313484 | F37: ='т.4.2'!D37/'т.4.1'!D36*100 -> 1.682743082
A38: 34 | B38: Алданская | C38: 5.3 | D38: ='т.4.1'!D38/т.2!D39 -> 13.36698912 | E38: =т.6!D38/'т.4.1'!D38 -> 1.35484795 | F38: ='т.4.2'!D39/'т.4.1'!D38*100 -> 6.306632292
A39: 35 | B39: М.-Кангаласская | C39: =(т.4!J39/т.1!C42)/1000 -> 13.91030395 | D39: ='т.4.1'!D39/т.2!D40 -> 21.65565703 | E39: =т.6!D39/'т.4.1'!D39 -> 0.8394839713 | F39: ='т.4.2'!D40/'т.4.1'!D39*100 -> 1.16879967
A40: 36 | B40: ГБ г.Нерюнгри | D40: ='т.4.1'!D40/т.2!D41 -> 11.87454445 | E40: =т.6!D40/'т.4.1'!D40 -> 1.718230349 | F40: ='т.4.2'!D41/'т.4.1'!D40*100 -> 3.093262899
A41: 37 | B41: Бердигестях ДБ | D41: ='т.4.1'!D41/т.2!D42 -> 10.82258065 | E41: =т.6!D41/'т.4.1'!D41 -> 2.207272727 | F41: ='т.4.2'!D42/'т.4.1'!D41*100 -> 2.169895678
A42: 38 | B42: Б-ка ГО "Жатай" | C42: =(т.4!J42/т.1!C45)/1000 -> 1.798983051 | D42: ='т.4.1'!D42/т.2!D43 -> 8.040909091 | E42: =т.6!D42/'т.4.1'!D42 -> 2.235114 | F42: ='т.4.2'!D43/'т.4.1'!D42*100 -> 1.20124364
A43: 39 | B43: Алданский БИЦ | D43: ='т.4.1'!D43/т.2!D44 -> 10.5261067 | E43: =т.6!D43/'т.4.1'!D43 -> 1.908017469 | F43: ='т.4.2'!D44/'т.4.1'!D43*100 -> 5.132905591
A44: 40 | B44: Томмотский БИЦ | D44: ='т.4.1'!D44/т.2!D45 -> 8.168800174 | E44: =т.6!D44/'т.4.1'!D44 -> 2.984594954 | F44: ='т.4.2'!D45/'т.4.1'!D44*100 -> 8.20185923
B45: Итого по МБ | C45: =(т.4!J45/т.1!C48)/1000 -> 6.831221046 | D45: ='т.4.1'!D45/т.2!D46 -> 15.99773437 | E45: =т.6!D45/'т.4.1'!D45 -> 1.299449983 | F45: ='т.4.2'!D46*100/'т.4.1'!D45 -> 3.082364011
B46: НБ РС(Я) | D46: ='т.4.1'!D46/т.2!D47 -> 47.97635042 | E46: =т.6!D46/'т.4.1'!D46 -> 0.9392814288 | F46: ='т.4.2'!D47*100/'т.4.1'!D46 -> 1.101631645
B47: Филиал НБ "ДТК" | D47: ='т.4.1'!D47/т.2!D48 -> 14.12143703 | E47: =т.6!D47/'т.4.1'!D47 -> 0.7663378959 | F47: ='т.4.2'!D48*100/'т.4.1'!D47 -> 1.451511898
B48: ЯРСБНС | D48: ='т.4.1'!D48/т.2!D49 -> 62.28292099 | E48: =т.6!D48/'т.4.1'!D48 -> 0.6901672849 | F48: ='т.4.2'!D49*100/'т.4.1'!D48 -> 2.569178824
B49: ВСЕГО | C49: =(т.4!J49/т.1!C52)/1000 -> 8.905428315 | D49: ='т.4.1'!D49/т.2!D50 -> 18.61414935 | E49: =т.6!D49/'т.4.1'!D49 -> 1.20773454 | F49: ='т.4.2'!D50*100/'т.4.1'!D49 -> 2.653717169

Sheet т.6
F1: Таблица 6
A2: Выдача документов из фондов библиотек
A4: № | B4: ЦБС | C4: 2023 | D4: 2024 | E4: "+ -" | F4: в городе | G4: на селе
A5: 1 | B5: Абыйская | C5: 95723 | D5: 96723 | E5: =D5 - C5 -> 1000 | F5: =D5 - G5 -> 56271 | G5: 40452
A6: 2 | B6: Аллаиховская | C6: 50659 | D6: 47693 | E6: -2966 | F6: 40434 | G6: 7259
A7: 3 | B7: Амгинская | C7: 245176 | D7: 248239 | E7: 3063 | F7: =D7-G7 -> 0 | G7: 248239
A8: 4 | B8: Анабарская | C8: 24654 | D8: 30872 | E8: 6218 | F8: =D8-G8 -> 0 | G8: 30872
A9: 5 | B9: Булунская | C9: 155419 | D9: 160510 | E9: 5091 | F9: 108980 | G9: 51530
A10: 6 | B10: Верхневилюйская | C10: 319032 | D10: 315407 | E10: -3625 | F10: =D10-G10 -> 0 | G10: 315407
A11: 7 | B11: Верхнеколымская | C11: 82825 | D11: 86354 | E11: 3529 | F11: 58802 | G11: 27552
A12: 8 | B12: Верхоянская | C12: 143415 | D12: 156842 | E12: 13427 | F12: 80420 | G12: 76422
A13: 9 | B13: Вилюйская | C13: 332749 | D13: 347943 | E13: 15194 | F13: 199911 | G13: 148032
A14: 10 | B14: Горная | C14: 168509 | D14: 169992 | E14: 1483 | F14: 0 | G14: 169992
A15: 11 | B15: Жиганская | C15: 49160 | D15: 49649 | E15: 489 | F15: 0 | G15: 49649
A16: 12 | B16: Кобяйская | C16: 180100 | D16: 176047 | E16: -4053 | F16: 109144 | G16: 66903
A17: 13 | B17: Ленская | C17: 360963 | D17: 353460 | E17: -7503 | F17: 275660 | G17: 77800
A18: 14 | B18: Момская | C18: 42512 | D18: 43920 | E18: 1408 | F18: 0 | G18: 43920
A19: 15 | B19: Намская | C19: 324081 | D19: 349307 | E19: 25226 | F19: =D19-G19 -> 0 | G19: 349307
A20: 16 | B20: Нижнеколымская | C20: 40737 | D20: 49762 | E20: 9025 | F20: 45822 | G20: 3940
A21: 17 | B21: Нюрбинская | C21: 318014 | D21: 340192 | E21: 22178 | F21: 150920 | G21: 189272
A22: 18 | B22: Оймяконская | C22: 108893 | D22: 110222 | E22: 1329 | F22: 68070 | G22: 42152
A23: 19 | B23: Олекминская | C23: 303734 | D23: 300002 | E23: -3732 | F23: 143160 | G23: 156842
A24: 20 | B24: Оленекская | C24: 42879 | D24: 44822 | E24: 1943 | F24: 0 | G24: 44822
A25: 21 | B25: Среднеколымская | C25: 53439 | D25: 56274 | E25: 2835 | F25: 25133 | G25: 31141
A26: 22 | B26: Сунтарская | C26: 313158 | D26: 303415 | E26: -9743 | F26: 0 | G26: 303415
A27: 23 | B27: Таттинская | C27: 168115 | D27: 172825 | E27: 4710 | F27: 0 | G27: 172825
A28: 24 | B28: Томпонская | C28: 155182 | D28: 139001 | E28: -16181 | F28: 63569 | G28: 75432
A29: 25 | B29: Усть-Алданская | C29: 416499 | D29: 407661 | E29: -8838 | F29: 0 | G29: 407661
A30: 26 | B30: Усть-Майская | C30: 152777 | D30: 147592 | E30: -5185 | F30: 111391 | G30: 36201
A31: 27 | B31: Усть-Янская | C31: 84164 | D31: 91792 | E31: 7628 | F31: 69868 | G31: 21924
A32: 28 | B32: Хангаласская | C32: 439929 | D32: 383579 | E32: -56350 | F32: 182320 | G32: 201259
A33: 29 | B33: Чурапчинская | C33: 325287 | D33: 332345 | E33: 7058 | F33: 0 | G33: 332345
A34: 30 | B34: Мирнинская | C34: 537800 | D34: 538502 | E34: 702 | F34: 516545 | G34: 21957
A35: 31 | B35: Нерюнгринская | C35: 303944 | D35: 302576 | E35: -1368 | F35: 282038 | G35: 20538
A36: 32 | B36: Эвено-Бытантайcкая | C36: 39178 | D36: 38584 | E36: -594 | F36: 0 | G36: 38584
A37: 33 | B37: Якутская | C37: 1458553 | D37: 1482643 | E37: =D37 - C37 -> 24090 | F37: =D37 - G37 -> 1340379 | G37: 142264
A38: 34 | B38: Алданская | C38: 178809 | D38: 179726 | E38: =D38 - C38 -> 917 | F38: =D38 - G38 -> 161555 | G38: 18171
A39: 35 | B39: Мегино-Кангаласская | C39: 392989 | D39: 384189 | E39: =D39 - C39 -> -8800 | F39: =D39 - G39 -> 18436 | G39: 365753
A40: 36 | B40: ГБ г.Нерюнгри | C40: 183869 | D40: 184751 | E40: 882 | F40: 184751 | G40: 0
A41: 37 | B41: Бердигестях ДБ | C41: 39097 | D41: 37027 | F41: 0 | G41: 37027
A42: 38 | B42: Б-ка ГО "Жатай" | C42: 56679 | D42: 47447 | E42: =D42 - C42 -> -9232 | F42: 47447 | G42: 0
A43: 39 | B43: Алданский БИЦ | C43: 74753 | D43: 70776 | E43: =D43 - C43 -> -3977 | F43: =D43 - G43 -> 67438 | G43: 3338
A44: 40 | B44: Томмотский БИЦ | C44: 112705 | D44: 112370 | E44: =D44 - C44 -> -335 | F44: =D44 - G44 -> 104947 | G44: 7423
B45: Итого по МБ | C45: =SUM(C5:C44) -> 8876160 | D45: =SUM(D5:D44) -> 8891033 | E45: 14873 | F45: 4513411 | G45: =SUM(G5:G44) -> 4377622
B46: НБ РС(Я) | C46: 1441687 | D46: 1636789 | E46: 195102 | F46: 1636789 | G46: 0
B47: Филиал НБ "ДТК" | C47: 129439 | D47: 137058 | E47: 7619 | F47: 137058 | G47: 0
B48: ЯРСБНС | C48: 99722 | D48: 107722 | E48: 8000 | F48: 107722 | G48: 0
B49: Итого по РС(Я) | C49: =SUM(C45:C48) -> 10547008 | D49: =SUM(D45:D48) -> 10772602 | E49: 225594 | F49: =SUM(F45:F48) -> 6394980 | G49: =SUM(G45:G48) -> 4377622

Sheet т.6.1
G1: Таблица 6.1
A2: Выдача документов из фондов библиотек
A4: № | B4: ЦБС | C4: 2023 | D4: 2024 | E4: в том числе
E5: из фонда на физ. нос. | F5: из ЭБ | G5: инсталл. док. | H5: сетев. удал. лиц. док.
A6: 1 | B6: Абыйская | C6: 95723 | D6: 96723 | E6: 96723
A7: 2 | B7: Аллаиховская | C7: 50659 | D7: 47693 | E7: 47693
A8: 3 | B8: Амгинская | C8: 245176 | D8: 248239 | E8: 243063 | H8: 5176
A9: 4 | B9: Анабарская | C9: 24654 | D9: 30872 | E9: 30839 | F9: 33
A10: 5 | B10: Булунская | C10: 155419 | D10: 160510 | E10: 160510
A11: 6 | B11: Верхневилюйская | C11: 319032 | D11: 315407 | E11: 314785 | F11: 81 | G11: 271 | H11: 270
A12: 7 | B12: Верхнеколымская | C12: 82825 | D12: 86354 | E12: 86014 | H12: 340
A13: 8 | B13: Верхоянская | C13: 143415 | D13: 156842 | E13: 156818 | G13: 24
A14: 9 | B14: Вилюйская | C14: 332749 | D14: 347943 | E14: 319920 | F14: 28023
A15: 10 | B15: Горная | C15: 168509 | D15: 169992 | E15: 169588 | G15: 187 | H15: 217
A16: 11 | B16: Жиганская | C16: 49160 | D16: 49649 | E16: 49536 | H16: 113
A17: 12 | B17: Кобяйская | C17: 180100 | D17: 176047 | E17: 174368 | F17: 1679
A18: 13 | B18: Ленская | C18: 360963 | D18: 353460 | E18: 344434 | G18: 68 | H18: 8958
A19: 14 | B19: Момская | C19: 42512 | D19: 43920 | E19: 43920
A20: 15 | B20: Намская | C20: 324081 | D20: 349307 | E20: 348037 | F20: 361 | G20: 25 | H20: 884
A21: 16 | B21: Нижнеколымская | C21: 40737 | D21: 49762 | E21: 49762
A22: 17 | B22: Нюрбинская | C22: 318014 | D22: 340192 | E22: 340192
A23: 18 | B23: Оймяконская | C23: 108893 | D23: 110222 | E23: 110222
A24: 19 | B24: Олекминская | C24: 303734 | D24: 300002 | E24: 300002
A25: 20 | B25: Оленекская | C25: 42879 | D25: 44822 | E25: 44754 | H25: 68
A26: 21 | B26: Среднеколымская | C26: 53439 | D26: 56274 | E26: 56274
A27: 22 | B27: Сунтарская | C27: 313158 | D27: 303415 | E27: 302306 | F27: 606 | G27: 443 | H27: 60
A28: 23 | B28: Таттинская | C28: 168115 | D28: 172825 | E28: 160060 | F28: 10037 | G28: 11 | H28: 2717
A29: 24 | B29: Томпонская | C29: 155182 | D29: 139001 | E29: 134337 | F29: 4098 | G29: 196 | H29: 370
A30: 25 | B30: Усть-Алданская | C30: 416499 | D30: 407661 | E30: 368361 | F30: 38582 | G30: 718
A31: 26 | B31: Усть-Майская | C31: 152777 | D31: 147592 | E31: 147592
A32: 27 | B32: Усть-Янская | C32: 84164 | D32: 91792 | E32: 91792
A33: 28 | B33: Хангаласская | C33: 439929 | D33: 383579 | E33: 335865 | F33: 46847 | G33: 313 | H33: 554
A34: 29 | B34: Чурапчинская | C34: 325287 | D34: 332345 | E34: 332345
A35: 30 | B35: Мирнинская | C35: 537800 | D35: 538502 | E35: 537134 | G35: 149 | H35: 1219
A36: 31 | B36: Нерюнгринская | C36: 303944 | D36: 302576 | E36: 283839 | F36: 3507 | G36: 559 | H36: 14671
A37: 32 | B37: Эвено-Бытантайcкая | C37: 39178 | D37: 38584 | E37: 38584
A38: 33 | B38: Якутская | C38: 1458553 | D38: 1482643 | E38: 1461755 | G38: 588 | H38: 20300
A39: 34 | B39: Алданская | C39: 178809 | D39: 179726 | E39: 152480 | F39: 14682 | G39: 6493 | H39: 6071
A40: 35 | B40: Мег.-Кангаласская | C40: 392989 | D40: 384189 | E40: 383771 | H40: 418
A41: 36 | B41: ГБ г.Нерюнгри | C41: 183869 | D41: 184751 | E41: 178768 | G41: 4654 | H41: 1329
A42: 37 | B42: Бердигестях ДБ | C42: 39097 | D42: 37027 | E42: 37027
A43: 38 | B43: Б-ка ГО "Жатай" | C43: 56679 | D43: 47447 | E43: 47447
A44: 39 | B44: Алданский БИЦ | C44: 74753 | D44: 70776 | E44: 70776
A45: 40 | B45: Томмотский БИЦ | C45: 112705 | D45: 112370 | E45: 112370
B46: Итого по МБ | C46: =SUM(C6:C45) -> 8876160 | D46: 8891033 | E46: 8664063 | F46: 148536 | G46: 14699 | H46: 63735
B47: НБ РС(Я) | C47: 1441687 | D47: 1636789 | E47: 657275 | F47: 929365 | G47: 4416 | H47: 45733
B48: Филиал НБ "ДТК" | C48: 129439 | D48: 137058 | E48: 137058
B49: ЯРСБНС | C49: 99722 | D49: 107722 | E49: 61580 | F49: 25226 | H49: 20916
B50: Итого по РС(Я) | C50: =SUM(C46:C49) -> 10547008 | D50: 10772602 | E50: 9519976 | F50: 1103127 | G50: 19115 | H50: 130384

Sheet т.7
I1: Таблица 7
A2: Общие сведения.
A3: Характеристика помещений библиотек республики.
A5: № | B5: ЦБС | C5: кол-во биб-к всего | D5: общая площадь (кв.м.) 2023 | E5: общая площадь (кв.м.) 2024 | F5: "+ -" | G5: требуют кап.ремонт (ед.) | H5: аварий- ных (ед.) | I5: арендо- ванных (ед.) | J5: прочие
A6: 1 | B6: Абыйская | C6: 7 | D6: 678.3 | E6: 678.3 | F6: =E6-D6 -> 0
A7: 2 | B7: Аллаиховская | C7: 6 | D7: 401.3 | E7: 401.3 | F7: =E7-D7 -> 0 | G7: 1
A8: 3 | B8: Амгинская | C8: 16 | D8: 1321.6 | E8: 1405.1 | F8: 83.5 | H8: 2
A9: 4 | B9: Анабарская | C9: 3 | D9: 251 | E9: 251 | F9: 0 | I9: 1
A10: 5 | B10: Булунская | C10: 8 | D10: 862.8 | E10: 862.8 | F10: 0 | G10: 5
A11: 6 | B11: Верхневилюйская | C11: 23 | D11: 2308.5 | E11: 2198.5 | F11: -110
A12: 7 | B12: Верхнеколымская | C12: 7 | D12: 822.3 | E12: 714.1 | F12: -108.2 | I12: 1
A13: 8 | B13: Верхоянская | C13: 17 | D13: 1222.2 | E13: 1222.2 | F13: 0
A14: 9 | B14: Вилюйская | C14: 24 | D14: 2241.2 | E14: 2305.9 | F14: 64.7 | H14: 1
A15: 10 | B15: Горная | C15: 9 | D15: 856.3 | E15: 856.3 | F15: 0 | H15: 1
A16: 11 | B16: Жиганская | C16: 5 | D16: 279.6 | E16: 279.6 | F16: 0
A17: 12 | B17: Кобяйская | C17: 17 | D17: 1516.3 | E17: 1516.3 | F17: 0 | I17: 10
A18: 13 | B18: Ленская | C18: 21 | D18: 2376.7 | E18: 2392.5 | F18: 15.8 | I18: 5
A19: 14 | B19: Момская | C19: 7 | D19: 591.9 | E19: 591.9 | F19: 0
A20: 15 | B20: Намская | C20: 20 | D20: 2346.7 | E20: 2397.7 | F20: 51 | G20: 1
A21: 16 | B21: Нижнеколымская | C21: 6 | D21: 605.7 | E21: 605.7 | F21: 0 | G21: 1
A22: 17 | B22: Нюрбинская | C22: 23 | D22: 1624.9 | E22: 1624.9 | F22: 0
A23: 18 | B23: Оймяконская | C23: 9 | D23: 803.3 | E23: 803.3 | F23: 0 | I23: 2
A24: 19 | B24: Олекминская | C24: 27 | D24: 1567.9 | E24: 1555.8 | F24: -12.1
A25: 20 | B25: Оленекская | C25: 5 | D25: 374.9 | E25: 374.9 | F25: 0
A26: 21 | B26: Среднеколымская | C26: 11 | D26: 588.5 | E26: 588.5 | F26: 0
A27: 22 | B27: Сунтарская | C27: 22 | D27: 1802.5 | E27: 1802.5 | F27: 0 | H27: 2
A28: 23 | B28: Таттинская | C28: 15 | D28: 1364.2 | E28: 1314.1 | F28: -50.1 | G28: 1
A29: 24 | B29: Томпонская | C29: 13 | D29: 2202.7 | E29: 2202.7 | F29: 0 | H29: 1 | I29: 1
A30: 25 | B30: Усть-Алданская | C30: 28 | D30: 3374.4 | E30: 3051.3 | F30: -323.1
A31: 26 | B31: Усть-Майская | C31: 10 | D31: 623.1 | E31: 649.7 | F31: 26.6 | I31: 7
A32: 27 | B32: Усть-Янская | C32: 11 | D32: 599.1 | E32: 599.1 | F32: =E32-D32 -> 0 | I32: 11
A33: 28 | B33: Хангаласская | C33: 24 | D33: 2676.6 | E33: 2745.4 | F33: =E33-D33 -> 68.8 | H33: 1
A34: 29 | B34: Чурапчинская | C34: 19 | D34: 1763.3 | E34: 2180.4 | F34: =E34-D34 -> 417.1
A35: 30 | B35: Мирнинская | C35: 11 | D35: 2679.1 | E35: 2679.1 | F35: =E35-D35 -> 0 | I35: 8
A36: 31 | B36: Нерюнгринская | C36: 8 | D36: 1585.4 | E36: 1572.3 | F36: =E36-D36 -> -13.1
A37: 32 | B37: Эвено-Бытантайская | C37: 3 | D37: 167 | E37: 167 | F37: =E37-D37 -> 0
A38: 33 | B38: Якутская | C38: 18 | D38: 8059.1 | E38: 8059.1 | F38: 0 | I38: 2
A39: 34 | B39: Алданская | C39: 9 | D39: 1175.5 | E39: 1194.3 | F39: 18.8 | I39: 8
A40: 35 | B40: Мегино-Кангаласская | C40: 31 | D40: 2712.3 | E40: 2667.8 | F40: -44.5 | H40: 2
A41: 36 | B41: ГБ г.Нерюнгри | C41: 1 | D41: 1527.5 | E41: 1527.5 | F41: 0
A42: 37 | B42: Бердигестях ДБ | C42: 1 | D42: 192.2 | E42: 192.2 | F42: 0
A43: 38 | B43: Б-ка ГО "Жатай" | C43: 1 | D43: 307 | E43: 307 | F43: 0
A44: 39 | B44: Алданский БИЦ | C44: 2 | D44: 427.2 | E44: 427.2 | F44: 0 | I44: 1
A45: 40 | B45: Томмотский БИЦ | C45: 3 | D45: 376 | E45: 376 | F45: 0
B46: Итого по МБ | C46: =SUM(C6:C45) -> 501 | D46: =SUM(D6:D45) -> 57256.1 | E46: =SUM(E6:E45) -> 57341.3 | F46: 85.2 | G46: =SUM(G6:G45) -> 9 | H46: =SUM(H6:H45) -> 10 | I46: =SUM(I6:I45) -> 57 | J46: =SUM(J6:J43) -> 0
B47: НБ РС(Я) | C47: 1 | D47: 8483.2 | E47: 8483.2 | F47: 0 | G47: 1
B48: Филиал НБ "ДТК" | C48: 1 | D48: 924 | E48: 924 | F48: 0 | I48: 1
B49: ЯРСБНС | C49: 1 | D49: 328.5 | E49: 328.5 | F49: 0
B50: Итого по РС(Я) | C50: =SUM(C46:C49) -> 504 | D50: =SUM(D46:D49) -> 66991.8 | E50: =SUM(E46:E49) -> 67077 | F50: 85.2 | G50: 10 | H50: 10 | I50: 58 | J50: 0

Sheet т.8
I1: Таблица 8
A2: Материально-техническая база библиотек республики.
A3: Количество технических средств, средств связи.
A4: № | B4: ЦБС | C4: всего | D4: число | E4: число | F4: число | G4: число библиотек, имеющих
C5: кол-во | D5: посад. | E5: посад. | F5: посад. | G5: здание | H5: спец. | I5: Интернет | J5: доступ
C6: биб-к | D6: мест | E6: мест | F6: мест | G6: для лиц | H6: оборуд. | I6: сайт | J6: в
D7: для польз. | E7: комп. | F7: с Инт. | G7: с ОВЗ пандус | H7: для инвал. | I7: или стр. | J7: Инт.
A8: 1 | B8: Абыйская | C8: 7 | D8: 74 | E8: 9 | F8: 9 | G8: 2 | H8: 2 | I8: 1 | J8: 7
A9: 2 | B9: Аллаиховская | C9: 6 | D9: 56 | E9: 4 | F9: 3 | I9: 1 | J9: 4
A10: 3 | B10: Амгинская | C10: 16 | D10: 150 | E10: 35 | F10: 33 | G10: 8 | H10: 15 | I10: 2 | J10: 16
A11: 4 | B11: Анабарская | C11: 3 | D11: 30 | E11: 7 | F11: 7 | G11: 2 | H11: 1 | I11: 1 | J11: 3
A12: 5 | B12: Булунская | C12: 8 | D12: 122 | E12: 11 | F12: 8 | G12: 5 | I12: 1 | J12: 8
A13: 6 | B13: Верхневилюйская | C13: 23 | D13: 340 | E13: 55 | F13: 47 | G13: 16 | H13: 1 | I13: 23 | J13: 23
A14: 7 | B14: Верхнеколымская | C14: 7 | D14: 83 | E14: 18 | F14: 11 | G14: 1 | I14: 1 | J14: 7
A15: 8 | B15: Верхоянская | C15: 17 | D15: 166 | E15: 15 | F15: 11 | G15: 2 | I15: 1 | J15: 16
A16: 9 | B16: Вилюйская | C16: 24 | D16: 277 | E16: 38 | F16: 30 | G16: 17 | H16: 1 | I16: 1 | J16: 23
A17: 10 | B17: Горная | C17: 9 | D17: 94 | E17: 17 | F17: 11 | G17: 3 | H17: 1 | I17: 1 | J17: 9
A18: 11 | B18: Жиганская | C18: 5 | D18: 43 | E18: 10 | F18: 10 | I18: 1 | J18: 5
A19: 12 | B19: Кобяйская | C19: 17 | D19: 220 | E19: 40 | F19: 38 | I19: 3 | J19: 17
A20: 13 | B20: Ленская | C20: 21 | D20: 196 | E20: 25 | F20: 25 | G20: 10 | I20: 1 | J20: 21
A21: 14 | B21: Момская | C21: 7 | D21: 65 | E21: 9 | F21: 6 | G21: 1 | I21: 1 | J21: 6
A22: 15 | B22: Намская | C22: 20 | D22: 303 | E22: 44 | F22: 37 | G22: 12 | H22: 1 | I22: 20 | J22: 20
A23: 16 | B23: Нижнеколымская | C23: 6 | D23: 48 | E23: 6 | F23: 5 | I23: 1 | J23: 6
A24: 17 | B24: Нюрбинская | C24: 23 | D24: 208 | E24: 27 | F24: 25 | G24: 23 | I24: 1 | J24: 22
A25: 18 | B25: Оймяконская | C25: 9 | D25: 96 | E25: 6 | F25: 5 | I25: 1 | J25: 8
A26: 19 | B26: Олекминская | C26: 27 | D26: 294 | E26: 63 | F26: 51 | G26: 10 | H26: 2 | I26: 22 | J26: 26
A27: 20 | B27: Оленекская | C27: 5 | D27: 34 | E27: 9 | F27: 7 | I27: 2 | J27: 5
A28: 21 | B28: Среднеколымская | C28: 11 | D28: 60 | E28: 10 | F28: 10 | I28: 1 | J28: 10
A29: 22 | B29: Сунтарская | C29: 22 | D29: 231 | E29: 31 | F29: 27 | G29: 16 | I29: 22 | J29: 22
A30: 23 | B30: Таттинская | C30: 15 | D30: 156 | E30: 35 | F30: 28 | I30: 15 | J30: 15
A31: 24 | B31: Томпонская | C31: 13 | D31: 159 | E31: 28 | F31: 25 | G31: 2 | H31: 1 | I31: 2 | J31: 12
A32: 25 | B32: Усть-Алданская | C32: 28 | D32: 353 | E32: 53 | F32: 40 | G32: 10 | H32: 2 | I32: 27 | J32: 28
A33: 26 | B33: Усть-Майская | C33: 10 | D33: 56 | E33: 3 | F33: 3 | I33: 1 | J33: 10
A34: 27 | B34: Усть-Янская | C34: 11 | D34: 61 | E34: 2 | F34: 2 | I34: 2 | J34: 9
A35: 28 | B35: Хангаласская | C35: 24 | D35: 286 | E35: 74 | F35: 62 | G35: 10 | H35: 1 | I35: 7 | J35: 24
A36: 29 | B36: Чурапчинская | C36: 19 | D36: 258 | E36: 53 | F36: 46 | G36: 3 | H36: 1 | I36: 19 | J36: 19
A37: 30 | B37: Мирнинская | C37: 11 | D37: 287 | E37: 26 | F37: 26 | G37: 5 | H37: 4 | I37: 1 | J37: 11
A38: 31 | B38: Нерюнгринская | C38: 8 | D38: 158 | E38: 33 | F38: 32 | G38: 4 | I38: 8 | J38: 8
A39: 32 | B39: Эвено-Бытантайская | C39: 3 | D39: 10 | E39: 1 | F39: 1 | I39: 1 | J39: 3
A40: 33 | B40: Якутская | C40: 18 | D40: 688 | E40: 116 | F40: 115 | G40: 12 | H40: 10 | I40: 3 | J40: 18
A41: 34 | B41: Алданская | C41: 9 | D41: 124 | E41: 27 | F41: 25 | G41: 2 | H41: 1 | I41: 1 | J41: 9
A42: 35 | B42: Мег.-Кангаласская | C42: 31 | D42: 298 | E42: 64 | F42: 58 | G42: 17 | I42: 31 | J42: 31
A43: 36 | B43: ГБ г.Нерюнгри | C43: 1 | D43: 232 | E43: 13 | F43: 13 | G43: 1 | H43: 1 | I43: 1 | J43: 1
A44: 37 | B44: Бердигестях ДБ | C44: 1 | D44: 36 | E44: 6 | F44: 6 | G44: 1 | I44: 1 | J44: 1
A45: 38 | B45: Б-ка ГО "Жатай" | C45: 1 | D45: 30 | E45: 1 | F45: 1 | G45: 1 | H45: 1 | I45: 1 | J45: 1
A46: 39 | B46: Алданский БИЦ | C46: 2 | D46: 71 | E46: 5 | F46: 4 | G46: 1 | I46: 1 | J46: 1
A47: 40 | B47: Томмотский БИЦ | C47: 3 | D47: 69 | E47: 11 | F47: 11 | I47: 1 | J47: 2
B48: ИТОГО по МБ | C48: =SUM(C8:C47) -> 501 | D48: =SUM(D8:D47) -> 6522 | E48: =SUM(E8:E47) -> 1040 | F48: =SUM(F8:F47) -> 914 | G48: =SUM(G8:G46) -> 197 | H48: =SUM(H8:H45) -> 46 | I48: =SUM(I8:I47) -> 232 | J48: =SUM(J8:J47) -> 487
B49: НБ РС(Я) | C49: 1 | D49: 404 | E49: 49 | F49: 38 | G49: 1 | H49: 1 | I49: 1 | J49: 1
B50: Филиал НБ "ДТК" | C50: 1 | D50: 96 | E50: 7 | F50: 7 | I50: 1 | J50: 1
B51: ЯРСБНС | C51: 1 | D51: 16 | E51: 8 | F51: 8 | H51: 1 | I51: 1 | J51: 1
B52: Итого по РС(Я) | C52: =SUM(C48:C51) -> 504 | D52: 7038 | E52: 1104 | F52: =SUM(F48:F51) -> 967 | G52: 198 | H52: 48 | I52: 235 | J52: 490

Sheet т.8.1
I1: Таблица 8.1
A2: Материально-техническая база библиотек на селе.
A3: Количество технических средств, средств связи.
A4: № | B4: ЦБС | C4: всего | D4: число | E4: число | F4: число | G4: число библиотек, имеющих
C5: кол-во | D5: посад. | E5: посад. | F5: посад. | G5: здание | H5: спец. | I5: Интернет | J5: доступ
C6: биб-к | D6: мест | E6: мест | F6: мест | G6: для лиц | H6: оборуд. | I6: сайт | J6: в
D7: для польз. | E7: компьют. | F7: с Инт. | G7: с ОВЗ, пандус | H7: для инвал. | J7: Интернет
A8: 1 | B8: Абыйская | C8: 5 | D8: 48 | E8: 5 | F8: 5 | J8: 5
A9: 2 | B9: Аллаиховская | C9: 4 | D9: 30 | E9: 1 | J9: 2
A10: 3 | B10: Амгинская | C10: 16 | D10: 150 | E10: 35 | F10: 33 | G10: 8 | H10: 15 | I10: 2 | J10: 16
A11: 4 | B11: Анабарская | C11: 3 | D11: 30 | E11: 7 | F11: 7 | G11: 2 | H11: 1 | I11: 1 | J11: 3
A12: 5 | B12: Булунская | C12: 6 | D12: 48 | E12: 5 | F12: 3 | G12: 3 | J12: 6
A13: 6 | B13: Верхневилюйская | C13: 23 | D13: 340 | E13: 55 | F13: 47 | G13: 16 | H13: 1 | I13: 23 | J13: 23
A14: 7 | B14: Верхнеколымская | C14: 5 | D14: 55 | E14: 11 | F14: 5 | G14: 1 | J14: 5
A15: 8 | B15: Верхоянская | C15: 13 | D15: 101 | E15: 8 | F15: 5 | J15: 12
A16: 9 | B16: Вилюйская | C16: 20 | D16: 134 | E16: 20 | F16: 14 | G16: 15 | J16: 19
A17: 10 | B17: Горная | C17: 9 | D17: 94 | E17: 17 | F17: 11 | G17: 3 | H17: 1 | I17: 1 | J17: 9
A18: 11 | B18: Жиганская | C18: 5 | D18: 43 | E18: 10 | F18: 10 | I18: 1 | J18: 5
A19: 12 | B19: Кобяйская | C19: 15 | D19: 174 | E19: 25 | F19: 23 | I19: 2 | J19: 15
A20: 13 | B20: Ленская | C20: 14 | D20: 43 | E20: 14 | F20: 14 | G20: 7 | J20: 14
A21: 14 | B21: Момская | C21: 7 | D21: 65 | E21: 9 | F21: 6 | G21: 1 | I21: 1 | J21: 6
A22: 15 | B22: Намская | C22: 20 | D22: 303 | E22: 44 | F22: 37 | G22: 12 | H22: 1 | I22: 20 | J22: 20
A23: 16 | B23: Нижнеколымская | C23: 3 | D23: 19 | E23: 3 | F23: 3 | J23: 3
A24: 17 | B24: Нюрбинская | C24: 20 | D24: 146 | E24: 24 | F24: 22 | G24: 20 | J24: 19
A25: 18 | B25: Оймяконская | C25: 6 | D25: 56 | E25: 2 | F25: 1 | J25: 5
A26: 19 | B26: Олекминская | C26: 25 | D26: 209 | E26: 50 | F26: 38 | G26: 8 | H26: 1 | I26: 20 | J26: 24
A27: 20 | B27: Оленекская | C27: 5 | D27: 34 | E27: 9 | F27: 7 | I27: 2 | J27: 5
A28: 21 | B28: Среднеколымская | C28: 9 | D28: 38 | E28: 8 | F28: 8 | J28: 8
A29: 22 | B29: Сунтарская | C29: 22 | D29: 231 | E29: 31 | F29: 27 | G29: 16 | I29: 22 | J29: 22
A30: 23 | B30: Таттинская | C30: 15 | D30: 156 | E30: 35 | F30: 28 | I30: 15 | J30: 15
A31: 24 | B31: Томпонская | C31: 10 | D31: 79 | E31: 6 | F31: 3 | J31: 9
A32: 25 | B32: Усть-Алданская | C32: 28 | D32: 353 | E32: 53 | F32: 40 | G32: 10 | H32: 2 | I32: 27 | J32: 28
A33: 26 | B33: Усть-Майская | C33: 5 | D33: 12 | J33: 5
A34: 27 | B34: Усть-Янская | C34: 7 | D34: 21 | J34: 5
A35: 28 | B35: Хангаласская | C35: 21 | D35: 193 | E35: 46 | F35: 36 | G35: 7 | I35: 4 | J35: 21
A36: 29 | B36: Чурапчинская | C36: 19 | D36: 258 | E36: 53 | F36: 46 | G36: 3 | H36: 1 | I36: 19 | J36: 19
A37: 30 | B37: Мирнинская | C37: 3 | D37: 17 | E37: 4 | F37: 4 | J37: 3
A38: 31 | B38: Нерюнгринская | C38: 2 | D38: 18 | E38: 4 | F38: 3 | I38: 2 | J38: 2
A39: 32 | B39: Эвено-Бытантайская | C39: 3 | D39: 10 | E39: 1 | F39: 1 | I39: 1 | J39: 3
A40: 33 | B40: Якутская | C40: 4 | D40: 92 | E40: 18 | F40: 17 | G40: 4 | H40: 3 | I40: 1 | J40: 4
A41: 34 | B41: Алданская | C41: 5 | D41: 32 | E41: 6 | F41: 4 | G41: 1 | J41: 5
A42: 35 | B42: Мег.-Кангаласская | C42: 30 | D42: 292 | E42: 63 | F42: 57 | G42: 16 | I42: 30 | J42: 30
A43: 36 | B43: Бердигестях ДБ | C43: 1 | D43: 36 | E43: 6 | F43: 6 | G43: 1 | I43: 1 | J43: 1
A44: 37 | B44: Алданский БИЦ | C44: 1 | D44: 11 | E44: 1
A45: 38 | B45: Томмотский БИЦ | C45: 1 | D45: 6 | E45: 1 | F45: 1
B46: Итого по РС(Я) | C46: =SUM(C8:C45) -> 410 | D46: 3977 | E46: 690 | F46: 572 | G46: 154 | H46: 26 | I46: 195 | J46: 396

Sheet т.9
H1: Таблица 9
A2: Персонал библиотек республики.
C4: штат | D4: числ. | E4: из них | F4: из них имеют | J4: из них прошли
A5: № | B5: ЦБС | C5: библ. | D5: раб-ков | E5: основной | F5: высшее | G5: из них | H5: среднее | I5: из них | J5: повыш кв.
D6: всего | E6: персонал | F6: обр. | G6: библ. | H6: спец. | I6: библ. | J6: переподг.
A7: 1 | B7: Абыйская | C7: 21 | D7: 21 | E7: 15 | F7: 12 | G7: 9 | H7: 3 | J7: 4
A8: 2 | B8: Аллаиховская | C8: 15.5 | D8: 17 | E8: 12 | F8: 11 | G8: 5 | H8: 1 | J8: 4
A9: 3 | B9: Амгинская | C9: 57.5 | D9: 62 | E9: 44 | F9: 38 | G9: 26 | H9: 5 | I9: 3 | J9: 14
A10: 4 | B10: Анабарская | C10: 8 | D10: 8 | E10: 6 | F10: 3 | G10: 1 | H10: 3 | I10: 2 | J10: 3
A11: 5 | B11: Булунская | C11: 28.5 | D11: 32 | E11: 23 | F11: 15 | G11: 14 | H11: 8 | I11: 5 | J11: 5
A12: 6 | B12: Верхневилюйская | C12: 57.5 | D12: 65 | E12: 44 | F12: 36 | G12: 32 | H12: 8 | I12: 5 | J12: 16
A13: 7 | B13: Верхнеколымская | C13: 17 | D13: 21 | E13: 15 | F13: 9 | G13: 3 | H13: 2 | I13: 1 | J13: 1
A14: 8 | B14: Верхоянская | C14: 49 | D14: 55 | E14: 39 | F14: 22 | G14: 20 | H14: 17 | I14: 16 | J14: 10
A15: 9 | B15: Вилюйская | C15: 53 | D15: 61 | E15: 43 | F15: 37 | G15: 33 | H15: 6 | I15: 3 | J15: 31
A16: 10 | B16: Горная | C16: 24 | D16: 25 | E16: 24 | F16: 22 | G16: 14 | H16: 2 | I16: 2 | J16: 8
A17: 11 | B17: Жиганская | C17: 9 | D17: 9 | E17: 7 | F17: 6 | G17: 6 | H17: 1 | I17: 1 | J17: 2
A18: 12 | B18: Кобяйская | C18: 48.5 | D18: 56 | E18: 38 | F18: 21 | G18: 15 | H18: 16 | I18: 9 | J18: 7
A19: 13 | B19: Ленская | C19: 92 | D19: 92 | E19: 58 | F19: 25 | G19: 8 | H19: 30 | I19: 12 | J19: 22
A20: 14 | B20: Момская | C20: 20 | D20: 21 | E20: 13 | F20: 9 | G20: 9 | H20: 3 | I20: 3 | J20: 4
A21: 15 | B21: Намская | C21: 56.5 | D21: 65 | E21: 39 | F21: 30 | G21: 24 | H21: 9 | I21: 3 | J21: 18
A22: 16 | B22: Нижнеколымская | C22: 16.25 | D22: 12 | E22: 12 | F22: 6 | G22: 5 | H22: 6 | I22: 5 | J22: 1
A23: 17 | B23: Нюрбинская | C23: 63.5 | D23: 68 | E23: 52 | F23: 39 | G23: 34 | H23: 13 | I23: 9 | J23: 22
A24: 18 | B24: Оймяконская | C24: 26.5 | D24: 27 | E24: 20 | F24: 11 | G24: 7 | H24: 8 | I24: 6 | J24: 10
A25: 19 | B25: Олекминская | C25: 61.5 | D25: 70 | E25: 46 | F25: 32 | G25: 10 | H25: 12 | I25: 7 | J25: 15
A26: 20 | B26: Оленекская | C26: 14.5 | D26: 14 | E26: 13 | F26: 7 | G26: 6 | H26: 6 | I26: 6 | J26: 2
A27: 21 | B27: Среднеколымская | C27: 20 | D27: 20 | E27: 18 | F27: 7 | G27: 6 | H27: 11 | I27: 9 | J27: 2
A28: 22 | B28: Сунтарская | C28: 60.75 | D28: 65 | E28: 47 | F28: 37 | G28: 33 | H28: 10 | I28: 7 | J28: 15
A29: 23 | B29: Таттинская | C29: 42.5 | D29: 49 | E29: 31 | F29: 25 | G29: 23 | H29: 6 | I29: 6 | J29: 15
A30: 24 | B30: Томпонская | C30: 42 | D30: 42 | E30: 31 | F30: 18 | G30: 14 | H30: 12 | I30: 9 | J30: 14
A31: 25 | B31: Усть-Алданская | C31: 67.5 | D31: 86 | E31: 58 | F31: 53 | G31: 50 | H31: 5 | I31: 4 | J31: 16
A32: 26 | B32: Усть-Майская | C32: 33 | D32: 33 | E32: 24 | F32: 16 | G32: 10 | H32: 8 | I32: 5 | J32: 12
A33: 27 | B33: Усть-Янская | C33: 23 | D33: 23 | E33: 20 | F33: 10 | G33: 9 | H33: 10 | I33: 8 | J33: 4
A34: 28 | B34: Хангаласская | C34: 65 | D34: 84 | E34: 57 | F34: 46 | G34: 39 | H34: 9 | I34: 5 | J34: 21
A35: 29 | B35: Чурапчинская | C35: 52 | D35: 63 | E35: 40 | F35: 35 | G35: 26 | H35: 5 | I35: 1 | J35: 19
A36: 30 | B36: Мирнинская | C36: 68.75 | D36: 71 | E36: 50 | F36: 35 | G36: 29 | H36: 10 | I36: 6 | J36: 34
A37: 31 | B37: Нерюнгринская | C37: 29.25 | D37: 28 | E37: 24 | F37: 14 | G37: 6 | H37: 10 | I37: 5 | J37: 8
A38: 32 | B38: Эвено-Бытантай | C38: 8 | D38: 9 | E38: 6 | F38: 3 | G38: 3 | H38: 2 | I38: 1 | J38: 2
A39: 33 | B39: Якутская | C39: 185 | D39: 195 | E39: 172 | F39: 161 | G39: 119 | H39: 11 | I39: 10 | J39: 70
A40: 34 | B40: Алданская | C40: 44.25 | D40: 46 | E40: 35 | F40: 18 | G40: 8 | H40: 16 | I40: 7 | J40: 13
A41: 35 | B41: М.-Кангаласская | C41: 67 | D41: 60 | E41: 58 | F41: 48 | G41: 41 | H41: 9 | I41: 8 | J41: 25
A42: 36 | B42: ГБ г.Нерюнгри | C42: 13 | D42: 14 | E42: 13 | F42: 11 | G42: 9 | H42: 2 | I42: 1 | J42: 6
A43: 37 | B43: Бердигестях ДБ | C43: 7.5 | D43: 8 | E43: 4 | F43: 4 | G43: 4 | J43: 2
A44: 38 | B44: Б-ка ГО "Жатай" | C44: 5 | D44: 5 | E44: 4 | F44: 4 | G44: 4
A45: 39 | B45: Алданский БИЦ | C45: 10.5 | D45: 11 | E45: 8 | F45: 5 | G45: 1 | H45: 2 | I45: 1 | J45: 1
A46: 40 | B46: Томмотский БИЦ | C46: 10 | D46: 9 | E46: 8 | F46: 2 | G46: 2 | H46: 5 | I46: 5 | J46: 3
B47: Итого по МБ | C47: =SUM(C7:C46) -> 1593.25 | D47: 1722 | E47: 1271 | F47: 943 | G47: 717 | H47: 302 | I47: 196 | J47: 481
B48: НБ РС(Я) | C48: 222.5 | D48: 251 | E48: 240 | F48: 226 | G48: 144 | H48: 14 | I48: 4 | J48: 68
B49: Филиал НБ "ДТК" | C49: 30.5 | D49: 30 | E49: 30 | F49: 28 | G49: 14 | H49: 2 | J49: 10
B50: ЯРСБНС | C50: 17.5 | D50: 18 | E50: 16 | F50: 16 | G50: 5 | J50: 9
B51: Итого по РС(Я) | C51: =SUM(C47:C50) -> 1863.75 | D51: =SUM(D47:D50) -> 2021 | E51: 1557 | F51: 1213 | G51: 880 | H51: 318 | I51: 200 | J51: 568

Sheet т.9.1
H1: Таблица 9.1
A2: Персонал библиотек республики.
C4: из них | D4: со стажем работы | G4: по возрасту
A5: № | B5: ЦБС | C5: основной | D5: до 3 | E5: от 3 до | F5: свыше | G5: до 30 | H5: от 30 до | I5: 55 лет и
C6: персонал | D6: лет | E6: 10 лет | F6: 10 лет | G6: лет | H6: 55 лет | I6: старше
A7: 1 | B7: Абыйская | C7: 15 | D7: 7 | E7: 4 | F7: 4 | G7: 2 | H7: 9 | I7: 4
A8: 2 | B8: Аллаиховская | C8: 12 | D8: 5 | E8: 2 | F8: 5 | H8: 7 | I8: 5
A9: 3 | B9: Амгинская | C9: 44 | D9: 7 | E9: 3 | F9: 34 | H9: 28 | I9: 16
A10: 4 | B10: Анабарская | C10: 6 | D10: 1 | E10: 2 | F10: 3 | H10: 5 | I10: 1
A11: 5 | B11: Булунская | C11: 23 | D11: 3 | E11: 8 | F11: 12 | G11: 3 | H11: 12 | I11: 8
A12: 6 | B12: Верхневилюйская | C12: 44 | D12: 8 | E12: 12 | F12: 24 | H12: 27 | I12: 17
A13: 7 | B13: Верхнеколымская | C13: 15 | D13: 7 | E13: 1 | F13: 7 | G13: 3 | H13: 7 | I13: 5
A14: 8 | B14: Верхоянская | C14: 39 | D14: 18 | E14: 9 | F14: 12 | G14: 5 | H14: 22 | I14: 12
A15: 9 | B15: Вилюйская | C15: 43 | D15: 7 | E15: 8 | F15: 28 | G15: 3 | H15: 23 | I15: 17
A16: 10 | B16: Горная | C16: 24 | D16: 6 | E16: 5 | F16: 13 | G16: 1 | H16: 19 | I16: 4
A17: 11 | B17: Жиганская | C17: 7 | D17: 1 | E17: 4 | F17: 2 | H17: 5 | I17: 2
A18: 12 | B18: Кобяйская | C18: 38 | D18: 12 | E18: 8 | F18: 18 | G18: 7 | H18: 22 | I18: 9
A19: 13 | B19: Ленская | C19: 58 | D19: 10 | E19: 23 | F19: 25 | G19: 4 | H19: 42 | I19: 12
A20: 14 | B20: Момская | C20: 13 | D20: 3 | E20: 4 | F20: 6 | G20: 1 | H20: 7 | I20: 5
A21: 15 | B21: Намская | C21: 39 | D21: 9 | E21: 5 | F21: 25 | G21: 2 | H21: 19 | I21: 18
A22: 16 | B22: Нижнеколымская | C22: 12 | D22: 2 | E22: 3 | F22: 7 | G22: 3 | H22: 5 | I22: 4
A23: 17 | B23: Нюрбинская | C23: 52 | D23: 11 | E23: 17 | F23: 24 | G23: 3 | H23: 31 | I23: 18
A24: 18 | B24: Оймяконская | C24: 20 | D24: 4 | E24: 6 | F24: 10 | G24: 2 | H24: 11 | I24: 7
A25: 19 | B25: Олекминская | C25: 46 | D25: 9 | E25: 13 | F25: 24 | G25: 5 | H25: 29 | I25: 12
A26: 20 | B26: Оленекская | C26: 13 | D26: 2 | E26: 7 | F26: 4 | G26: 2 | H26: 8 | I26: 3
A27: 21 | B27: Среднеколымская | C27: 18 | D27: 3 | E27: 4 | F27: 11 | G27: 1 | H27: 14 | I27: 3
A28: 22 | B28: Сунтарская | C28: 47 | D28: 6 | E28: 11 | F28: 30 | H28: 32 | I28: 15
A29: 23 | B29: Таттинская | C29: 31 | D29: 3 | E29: 5 | F29: 23 | H29: 17 | I29: 14
A30: 24 | B30: Томпонская | C30: 31 | D30: 8 | E30: 6 | F30: 17 | G30: 4 | H30: 16 | I30: 11
A31: 25 | B31: Усть-Алданская | C31: 58 | D31: 7 | E31: 8 | F31: 43 | G31: 2 | H31: 35 | I31: 21
A32: 26 | B32: Усть-Майская | C32: 24 | D32: 6 | E32: 10 | F32: 8 | G32: 1 | H32: 19 | I32: 4
A33: 27 | B33: Усть-Янская | C33: 20 | D33: 10 | E33: 2 | F33: 8 | G33: 3 | H33: 14 | I33: 3
A34: 28 | B34: Хангаласская | C34: 57 | D34: 11 | E34: 17 | F34: 29 | G34: 2 | H34: 32 | I34: 23
A35: 29 | B35: Чурапчинская | C35: 40 | D35: 15 | E35: 7 | F35: 18 | G35: 3 | H35: 23 | I35: 14
A36: 30 | B36: Мирнинская | C36: 50 | D36: 14 | E36: 14 | F36: 22 | G36: 7 | H36: 39 | I36: 4
A37: 31 | B37: Нерюнгринская | C37: 24 | D37: 5 | E37: 6 | F37: 13 | H37: 16 | I37: 8
A38: 32 | B38: Эвено-Бытантай | C38: 6 | F38: 6 | H38: 1 | I38: 5
A39: 33 | B39: Якутская | C39: 172 | D39: 37 | E39: 41 | F39: 94 | G39: 22 | H39: 120 | I39: 30
A40: 34 | B40: Алданская | C40: 35 | D40: 9 | E40: 5 | F40: 21 | G40: 1 | H40: 17 | I40: 17
A41: 35 | B41: М.-Кангаласская | C41: 58 | D41: 16 | E41: 11 | F41: 31 | G41: 3 | H41: 40 | I41: 15
A42: 36 | B42: ГБ г.Нерюнгри | C42: 13 | D42: 2 | E42: 2 | F42: 9 | G42: 1 | H42: 7 | I42: 5
A43: 37 | B43: Бердигестях ДБ | C43: 4 | F43: 4 | H43: 2 | I43: 2
A44: 38 | B44: Б-ка ГО "Жатай" | C44: 4 | D44: 1 | E44: 1 | F44: 2 | H44: 4
A45: 39 | B45: Алданский БИЦ | C45: 8 | D45: 3 | E45: 3 | F45: 2 | G45: 1 | H45: 6 | I45: 1
A46: 40 | B46: Томмотский БИЦ | C46: 8 | D46: 5 | E46: 2 | F46: 1 | G46: 2 | H46: 5 | I46: 1
B47: Итого по МБ | C47: =SUM(C7:C46) -> 1271 | D47: =SUM(D7:D46) -> 293 | E47: 299 | F47: 679 | G47: 99 | H47: 797 | I47: 375
B48: НБ РС(Я) | C48: 240 | D48: 77 | E48: 52 | F48: 111 | G48: 22 | H48: 129 | I48: 89
B49: Филиал НБ "ДТК" | C49: 30 | D49: 13 | E49: 5 | F49: 12 | G49: 8 | H49: 16 | I49: 6
B50: ЯРСБНС | C50: 16 | D50: 5 | E50: 6 | F50: 5 | G50: 3 | H50: 11 | I50: 2
B51: Итого по РС(Я) | C51: =SUM(C47:C50) -> 1557 | D51: =SUM(D47:D50) -> 388 | E51: 362 | F51: 807 | G51: 132 | H51: 953 | I51: 472

Sheet т.9.2
H1: Таблица 9.2
A2: Персонал библиотек (из общего числа- в сельской местности)
C4: штат | D4: числ. | E4: из них | F4: из них имеют | J4: из них прошли
A5: № | B5: ЦБС | C5: библ. | D5: раб-ков | E5: осн. | F5: высшее | G5: из них | H5: среднее | I5: из них | J5: повыш кв.
D6: всего | E6: перс. | F6: обр. | G6: библ. | H6: спец. | I6: библ. | J6: переподг.
A7: 1 | B7: Абыйская | C7: 10 | D7: 10 | E7: 5 | F7: 5 | G7: 5 | J7: 3
A8: 2 | B8: Аллаиховская | C8: 5.5 | D8: 7 | E8: 4 | F8: 3 | H8: 1
A9: 3 | B9: Амгинская | C9: 57.5 | D9: 62 | E9: 44 | F9: 38 | G9: 26 | H9: 5 | I9: 3 | J9: 14
A10: 4 | B10: Анабарская | C10: 8 | D10: 8 | E10: 6 | F10: 3 | G10: 1 | H10: 3 | I10: 2 | J10: 3
A11: 5 | B11: Булунская | C11: 10 | D11: 13 | E11: 7 | F11: 6 | G11: 6 | H11: 1 | I11: 1 | J11: 1
A12: 6 | B12: Верхневилюйская | C12: 57.5 | D12: 65 | E12: 44 | F12: 36 | G12: 32 | H12: 8 | I12: 5 | J12: 16
A13: 7 | B13: Верхнеколымская | C13: 4.5 | D13: 8 | E13: 5 | F13: 1 | G13: 1 | H13: 2 | I13: 1
A14: 8 | B14: Верхоянская | C14: 18.5 | D14: 24 | E14: 13 | F14: 6 | G14: 6 | H14: 7 | I14: 7 | J14: 5
A15: 9 | B15: Вилюйская | C15: 25 | D15: 33 | E15: 20 | F15: 18 | G15: 15 | H15: 2 | I15: 1 | J15: 17
A16: 10 | B16: Горная | C16: 24 | D16: 25 | E16: 24 | F16: 22 | G16: 14 | H16: 2 | I16: 2 | J16: 8
A17: 11 | B17: Жиганская | C17: 9 | D17: 9 | E17: 7 | F17: 6 | G17: 6 | H17: 1 | I17: 1 | J17: 2
A18: 12 | B18: Кобяйская | C18: 27.5 | D18: 36 | E18: 22 | F18: 12 | G18: 9 | H18: 9 | I18: 4 | J18: 3
A19: 13 | B19: Ленская | C19: 34 | D19: 34 | E19: 15 | F19: 5 | G19: 4 | H19: 7 | I19: 3 | J19: 5
A20: 14 | B20: Момская | C20: 20 | D20: 21 | E20: 13 | F20: 9 | G20: 9 | H20: 3 | I20: 3 | J20: 4
A21: 15 | B21: Намская | C21: 56.5 | D21: 65 | E21: 39 | F21: 30 | G21: 24 | H21: 9 | I21: 3 | J21: 18
A22: 16 | B22: Нижнеколымская | C22: 4 | D22: 3 | E22: 3 | F22: 1 | G22: 1 | H22: 2 | I22: 1 | J22: 1
A23: 17 | B23: Нюрбинская | C23: 27 | D23: 31 | E23: 23 | F23: 14 | G23: 13 | H23: 9 | I23: 5 | J23: 3
A24: 18 | B24: Оймяконская | C24: 10.5 | D24: 10 | E24: 8 | F24: 6 | G24: 5 | H24: 2 | I24: 2 | J24: 4
A25: 19 | B25: Олекминская | C25: 32.5 | D25: 42 | E25: 25 | F25: 17 | G25: 8 | H25: 6 | I25: 4 | J25: 4
A26: 20 | B26: Оленекская | C26: 14.5 | D26: 14 | E26: 13 | F26: 7 | G26: 6 | H26: 6 | I26: 6 | J26: 2
A27: 21 | B27: Среднеколымская | C27: 9 | D27: 9 | E27: 9 | F27: 2 | G27: 2 | H27: 7 | I27: 5
A28: 22 | B28: Сунтарская | C28: 60.75 | D28: 65 | E28: 47 | F28: 37 | G28: 33 | H28: 10 | I28: 7 | J28: 15
A29: 23 | B29: Таттинская | C29: 42.5 | D29: 49 | E29: 31 | F29: 25 | G29: 23 | H29: 6 | I29: 6 | J29: 15
A30: 24 | B30: Томпонская | C30: 12 | D30: 12 | E30: 12 | F30: 6 | G30: 5 | H30: 5 | I30: 5 | J30: 7
A31: 25 | B31: Усть-Алданская | C31: 67.5 | D31: 86 | E31: 58 | F31: 53 | G31: 50 | H31: 5 | I31: 4 | J31: 16
A32: 26 | B32: Усть-Майская | C32: 7 | D32: 7 | E32: 5 | F32: 3 | G32: 1 | H32: 2 | I32: 2 | J32: 4
A33: 27 | B33: Усть-Янская | C33: 8 | D33: 8 | E33: 8 | F33: 5 | G33: 4 | H33: 3 | I33: 2 | J33: 1
A34: 28 | B34: Хангаласская | C34: 29.25 | D34: 45 | E34: 25 | F34: 18 | G34: 16 | H34: 7 | I34: 5 | J34: 8
A35: 29 | B35: Чурапчинская | C35: 52 | D35: 63 | E35: 40 | F35: 35 | G35: 26 | H35: 5 | I35: 1 | J35: 19
A36: 30 | B36: Мирнинская | C36: 4.5 | D36: 6 | E36: 3 | F36: 1 | G36: 1 | J36: 3
A37: 31 | B37: Нерюнгринская | C37: 2 | D37: 2 | E37: 2 | H37: 2 | I37: 1
A38: 32 | B38: Эвено-Бытантайская | C38: 8 | D38: 9 | E38: 6 | F38: 3 | G38: 3 | H38: 2 | I38: 1 | J38: 2
A39: 33 | B39: Якутская | C39: 12 | D39: 14 | E39: 13 | F39: 12 | G39: 11 | H39: 1 | I39: 1 | J39: 4
A40: 34 | B40: Алданская | C40: 6 | D40: 7 | E40: 5 | F40: 1 | G40: 1 | H40: 3 | I40: 1 | J40: 2
A41: 35 | B41: М.-Кангаласская | C41: 65 | D41: 58 | E41: 56 | F41: 46 | G41: 39 | H41: 9 | I41: 8 | J41: 24
A42: 36 | B42: Бердигестях ДБ | C42: 7.5 | D42: 8 | E42: 4 | F42: 4 | G42: 4 | J42: 2
A43: 37 | B43: Алданский БИЦ | C43: 1 | D43: 1 | E43: 1 | F43: 1
A44: 38 | B44: Томмотский БИЦ | C44: 1 | D44: 1 | E44: 1 | H44: 1 | I44: 1
B45: Итого по РС(Я) | C45: =SUM(C7:C44) -> 851 | D45: 970 | E45: 666 | F45: 497 | G45: 410 | H45: 153 | I45: 104 | J45: 235

Sheet т.9.3
H1: Таблица 9.3
A2: Персонал библиотек (из общего числа- в сельской местности)
C4: из них | D4: со стажем работы | G4: по возрасту
A5: № | B5: ЦБС | C5: основной | D5: от 3 до | E5: от 6 до | F5: свыше | G5: до 30 | H5: от 30 до | I5: 55 лет и
C6: персонал | D6: 6 лет | E6: 10 лет | F6: 10 лет | G6: лет | H6: 55 лет | I6: старше
A7: 1 | B7: Абыйская | C7: 5 | D7: 1 | E7: 1 | F7: 3 | H7: 3 | I7: 2
A8: 2 | B8: Аллаиховская | C8: 4 | D8: 2 | E8: 1 | F8: 1 | H8: 2 | I8: 2
A9: 3 | B9: Амгинская | C9: 44 | D9: 7 | E9: 3 | F9: 34 | H9: 28 | I9: 16
A10: 4 | B10: Анабарская | C10: 6 | D10: 1 | E10: 2 | F10: 3 | H10: 5 | I10: 1
A11: 5 | B11: Булунская | C11: 7 | D11: 1 | E11: 3 | F11: 3 | H11: 5 | I11: 2
A12: 6 | B12: Верхневилюйская | C12: 44 | D12: 8 | E12: 12 | F12: 24 | H12: 27 | I12: 17
A13: 7 | B13: Верхнеколымская | C13: 5 | D13: 1 | E13: 1 | F13: 3 | G13: 1 | H13: 2 | I13: 2
A14: 8 | B14: Верхоянская | C14: 13 | D14: 6 | E14: 3 | F14: 4 | H14: 7 | I14: 6
A15: 9 | B15: Вилюйская | C15: 20 | D15: 3 | E15: 4 | F15: 13 | G15: 2 | H15: 13 | I15: 5
A16: 10 | B16: Горная | C16: 24 | D16: 6 | E16: 5 | F16: 13 | G16: 1 | H16: 19 | I16: 4
A17: 11 | B17: Жиганская | C17: 7 | D17: 1 | E17: 4 | F17: 2 | H17: 5 | I17: 2
A18: 12 | B18: Кобяйская | C18: 22 | D18: 8 | E18: 2 | F18: 12 | G18: 4 | H18: 12 | I18: 6
A19: 13 | B19: Ленская | C19: 15 | D19: 1 | E19: 7 | F19: 7 | H19: 10 | I19: 5
A20: 14 | B20: Момская | C20: 13 | D20: 3 | E20: 4 | F20: 6 | G20: 1 | H20: 7 | I20: 5
A21: 15 | B21: Намская | C21: 39 | D21: 9 | E21: 5 | F21: 25 | G21: 2 | H21: 19 | I21: 18
A22: 16 | B22: Нижнеколымская | C22: 3 | D22: 1 | E22: 1 | F22: 1 | G22: 2 | I22: 1
A23: 17 | B23: Нюрбинская | C23: 23 | D23: 8 | E23: 2 | F23: 13 | G23: 1 | H23: 12 | I23: 10
A24: 18 | B24: Оймяконская | C24: 8 | D24: 1 | E24: 1 | F24: 6 | H24: 4 | I24: 4
A25: 19 | B25: Олекминская | C25: 25 | D25: 6 | E25: 5 | F25: 14 | G25: 3 | H25: 16 | I25: 6
A26: 20 | B26: Оленекская | C26: 13 | D26: 2 | E26: 7 | F26: 4 | G26: 2 | H26: 8 | I26: 3
A27: 21 | B27: Среднеколымская | C27: 9 | D27: 1 | E27: 2 | F27: 6 | H27: 8 | I27: 1
A28: 22 | B28: Сунтарская | C28: 47 | D28: 6 | E28: 11 | F28: 30 | H28: 32 | I28: 15
A29: 23 | B29: Таттинская | C29: 31 | D29: 3 | E29: 5 | F29: 23 | H29: 17 | I29: 14
A30: 24 | B30: Томпонская | C30: 12 | D30: 4 | E30: 1 | F30: 7 | G30: 2 | H30: 8 | I30: 2
A31: 25 | B31: Усть-Алданская | C31: 58 | D31: 7 | E31: 8 | F31: 43 | G31: 2 | H31: 35 | I31: 21
A32: 26 | B32: Усть-Майская | C32: 5 | D32: 2 | E32: 2 | F32: 1 | H32: 4 | I32: 1
A33: 27 | B33: Усть-Янская | C33: 8 | D33: 3 | E33: 1 | F33: 4 | G33: 1 | H33: 5 | I33: 2
A34: 28 | B34: Хангаласская | C34: 25 | D34: 4 | E34: 8 | F34: 13 | G34: 1 | H34: 14 | I34: 10
A35: 29 | B35: Чурапчинская | C35: 40 | D35: 15 | E35: 7 | F35: 18 | G35: 3 | H35: 23 | I35: 14
A36: 30 | B36: Мирнинская | C36: 3 | D36: 1 | F36: 2 | H36: 3
A37: 31 | B37: Нерюнгринская | C37: 2 | E37: 1 | F37: 1 | H37: 1 | I37: 1
A38: 32 | B38: Эвено-Бытантайская | C38: 6 | F38: 6 | H38: 1 | I38: 5
A39: 33 | B39: Якутская | C39: 13 | D39: 3 | E39: 4 | F39: 6 | H39: 10 | I39: 3
A40: 34 | B40: Алданская | C40: 5 | D40: 2 | E40: 1 | F40: 2 | G40: 1 | H40: 4
A41: 35 | B41: М.-Кангаласская | C41: 56 | D41: 16 | E41: 10 | F41: 30 | G41: 3 | H41: 38 | I41: 15
A42: 36 | B42: Бердигестях ДБ | C42: 4 | F42: 4 | H42: 2 | I42: 2
A43: 37 | B43: Алданский БИЦ | C43: 1 | D43: 1 | H43: 1
A44: 38 | B44: Томмотский БИЦ | C44: 1 | E44: 1 | H44: 1
B45: Итого по МБ | C45: =SUM(C7:C44) -> 666 | D45: =SUM(D7:D44) -> 144 | E45: 135 | F45: 387 | G45: 32 | H45: 411 | I45: 223

Sheet т.10
I1: Таблица 10
C2: Электронные (сетевые) ресурсы
C4: число | D4: из них | E4: число | F4: из них | G4: число | H4: число | I4: объем | J4: объем
A5: № | B5: ЦБС | C5: б-к, | D5: пред. | E5: б-к, | F5: пред. | G5: б-к, | H5: б-к, | I5: ЭК | J5: ЭБ
C6: созд. | D6: доступ | E6: им. | F6: док. | G6: им. | H6: им.
C7: ЭК | D7: к ЭК | E7: ЭБ | F7: в откр. | G7: сетевые | H7: инсталл.
D8: через | F8: доступе | G8: лиценз. | H8: док.
D9: Инт. | G9: док.
A10: 1 | B10: Абыйская | C10: 1 | D10: 1 | I10: 19360
A11: 2 | B11: Аллаиховская | C11: 1 | D11: 1 | I11: 8845
A12: 3 | B12: Амгинская | C12: 1 | D12: 1 | E12: 1 | F12: 1 | G12: 1 | I12: 12354 | J12: 162
A13: 4 | B13: Анабарская | C13: 1 | D13: 1 | E13: 1 | F13: 1 | I13: 14764 | J13: 49
A14: 5 | B14: Булунская | C14: 1 | D14: 1 | I14: 11707
A15: 6 | B15: Верхневилюйская | C15: 1 | D15: 1 | E15: 1 | F15: 1 | G15: 1 | H15: 9 | I15: 37784 | J15: 9142
A16: 7 | B16: Верхнеколымская | C16: 1 | D16: 1 | G16: 1 | H16: 1 | I16: 7174
A17: 8 | B17: Верхоянская | C17: 1 | D17: 1 | H17: 1 | I17: 37016
A18: 9 | B18: Вилюйская | C18: 1 | D18: 1 | E18: 1 | F18: 1 | I18: 26655 | J18: 442
A19: 10 | B19: Горная | C19: 1 | D19: 1 | E19: 1 | F19: 1 | G19: 1 | H19: 1 | I19: 13600 | J19: 228
A20: 11 | B20: Жиганская | C20: 1 | D20: 1 | G20: 1 | I20: 14798
A21: 12 | B21: Кобяйская | C21: 1 | D21: 1 | E21: 1 | F21: 1 | H21: 1 | I21: 25615 | J21: 137
A22: 13 | B22: Ленская | C22: 1 | D22: 1 | G22: 1 | H22: 1 | I22: 30972
A23: 14 | B23: Момская | I23: 2140
A24: 15 | B24: Намская | C24: 1 | D24: 1 | E24: 1 | F24: 1 | G24: 1 | H24: 1 | I24: 30613 | J24: 115
A25: 16 | B25: Нижнеколымская | C25: 1 | H25: 1 | I25: 12089
A26: 17 | B26: Нюрбинская | C26: 1 | D26: 1 | I26: 10894
A27: 18 | B27: Оймяконская | C27: 1 | D27: 1 | I27: 12055
A28: 19 | B28: Олекминская | C28: 1 | D28: 1 | H28: 1 | I28: 30611
A29: 20 | B29: Оленекская | C29: 1 | D29: 1 | G29: 1 | I29: 8183
A30: 21 | B30: Среднеколымская | C30: 1 | D30: 1 | I30: 6938
A31: 22 | B31: Сунтарская | C31: 1 | D31: 1 | E31: 1 | F31: 1 | G31: 1 | H31: 1 | I31: 40243 | J31: 254
A32: 23 | B32: Таттинская | C32: 1 | D32: 1 | E32: 1 | F32: 1 | G32: 1 | H32: 1 | I32: 25363 | J32: 1777
A33: 24 | B33: Томпонская | C33: 1 | D33: 1 | E33: 1 | F33: 1 | G33: 1 | H33: 1 | I33: 10054 | J33: 2571
A34: 25 | B34: Усть-Алданская | C34: 1 | D34: 1 | E34: 1 | F34: 1 | H34: 1 | I34: 16386 | J34: 1507
A35: 26 | B35: Усть-Майская | C35: 1 | D35: 1 | H35: 1 | I35: 9744
A36: 27 | B36: Усть-Янская | C36: 1 | I36: 18635
A37: 28 | B37: Хангаласская | C37: 1 | D37: 1 | E37: 1 | F37: 1 | G37: 1 | H37: 1 | I37: 50450 | J37: 1992
A38: 29 | B38: Чурапчинская | C38: 1 | D38: 1 | I38: 16728
A39: 30 | B39: Мирнинская | C39: 1 | D39: 1 | G39: 2 | H39: 1 | I39: 36043
A40: 31 | B40: Нерюнгринская | C40: 1 | D40: 1 | E40: 1 | F40: 1 | G40: 8 | H40: 4 | I40: 70500 | J40: 5044
A41: 32 | B41: Эвено-Бытантайская | C41: 1 | D41: 1 | I41: 4450
A42: 33 | B42: Якутская | C42: 1 | D42: 1 | G42: 1 | H42: 13 | I42: 197875
A43: 34 | B43: Алданская | C43: 1 | D43: 1 | E43: 1 | F43: 1 | G43: 1 | H43: 1 | I43: 88600 | J43: 8835
A44: 35 | B44: Мегино-Кангаласская | C44: 1 | D44: 1 | G44: 1 | I44: 37116
A45: 36 | B45: ГБ г.Нерюнгри | C45: 1 | D45: 1 | G45: 1 | H45: 1 | I45: 35897
A46: 37 | B46: Бердигестях ДБ
A47: 38 | B47: Б-ка ГО "п. Жатай"
A48: 39 | B48: Алданский БИЦ
A49: 40 | B49: Томмотский БИЦ
B50: Итого по МБ | C50: =SUM(C10:C49) -> 35 | D50: 33 | E50: 14 | F50: 14 | G50: 26 | H50: 43 | I50: =SUM(I10:I49) -> 1032251 | J50: =SUM(J10:J47) -> 32255
B51: НБ РС(Я) | C51: 1 | D51: 1 | E51: 1 | F51: 1 | G51: 1 | H51: 1 | I51: 818707 | J51: 117852
B52: Филиал НБ "ДТК" | C52: 1 | D52: 1 | I52: 42885
B53: ЯРСБНС | C53: 1 | D53: 1 | E53: 1 | F53: 1 | G53: 1 | H53: 1 | I53: 37407 | J53: 25052
B54: ВСЕГО | C54: =SUM(C50:C53) -> 38 | D54: 36 | E54: 16 | F54: 16 | G54: 28 | H54: 45 | I54: 1931250 | J54: 175159

Sheet т.11
H1: Таблица 11
A2: Информационное обслуживание
A4: № | B4: ЦБС | C4: всего | D4: в том числе | F4: выполнено справок и консульт. | H4: число обращений удал. польз. (сайт) | J4: "+ -"
C5: документов | D5: МБА, ММБА, ЭДД | E5: вирт. чит. залы
C6: из фондов | F6: всего | G6: из них в удал. режиме | H6: 2023 | I6: 2024
C7: др. б-к
A8: 1 | B8: Абыйская | C8: 7 | D8: 7 | F8: 3326 | H8: 4567 | I8: 2683 | J8: =I8-H8 -> -1884
A9: 2 | B9: Аллаиховская | F9: 376 | H9: 986 | I9: 2183 | J9: =I9-H9 -> 1197
A10: 3 | B10: Амгинская | C10: 14 | E10: 14 | F10: 4135 | G10: 952 | H10: 33626 | I10: 56819 | J10: 23193
A11: 4 | B11: Анабарская | F11: 4798 | H11: 19 | I11: 232 | J11: 213
A12: 5 | B12: Булунская | F12: 3010 | H12: 2839 | I12: 3274 | J12: 435
A13: 6 | B13: Верхневилюйская | C13: 278 | D13: 38 | E13: 240 | F13: 4611 | G13: 1120 | H13: 61553 | I13: 76272 | J13: 14719
A14: 7 | B14: Верхнеколымская | F14: 1502 | H14: 24381 | I14: 2860 | J14: -21521
A15: 8 | B15: Верхоянская | F15: 3210 | H15: 2361 | I15: 5501 | J15: 3140
A16: 9 | B16: Вилюйская | C16: 4877 | E16: 4877 | F16: 4011 | G16: 515 | H16: 43191 | I16: 55754 | J16: 12563
A17: 10 | B17: Горная | C17: 3306 | D17: 3306 | F17: 2060 | G17: 292 | H17: 7485 | I17: 6200 | J17: -1285
A18: 11 | B18: Жиганская | F18: 12518 | H18: 1466 | I18: 1819 | J18: 353
A19: 12 | B19: Кобяйская | F19: 4820 | H19: 26558 | I19: 15924 | J19: -10634
A20: 13 | B20: Ленская | C20: 931 | D20: 158 | E20: 773 | F20: 9534 | G20: 203 | H20: 1881 | I20: 4507 | J20: =I20-H20 -> 2626
A21: 14 | B21: Момская | F21: 1652 | J21: =I21-H21 -> 0
A22: 15 | B22: Намская | C22: 957 | D22: 18 | E22: 939 | F22: 2828 | G22: 73 | H22: 46144 | I22: 61970 | J22: 15826
A23: 16 | B23: Нижнеколымская | F23: 1267 | H23: 1911 | I23: 4843 | J23: 2932
A24: 17 | B24: Нюрбинская | F24: 5768 | H24: 13030 | I24: 21856 | J24: 8826
A25: 18 | B25: Оймяконская | F25: 4221 | G25: 124 | H25: 10077 | I25: 8460 | J25: -1617
A26: 19 | B26: Олекминская | F26: 16113 | G26: 1610 | H26: 18027 | I26: 19170 | J26: 1143
A27: 20 | B27: Оленекская | C27: 10 | D27: 10 | F27: 539 | H27: 5216 | I27: 5420 | J27: 204
A28: 21 | B28: Среднеколымская | F28: 2021 | J28: 0
A29: 22 | B29: Сунтарская | C29: 117 | D29: 1 | E29: 116 | F29: 6264 | H29: 77108 | I29: 78090 | J29: 982
A30: 23 | B30: Таттинская | C30: 7569 | D30: 1302 | E30: 6267 | F30: 2227 | H30: 140647 | I30: 179208 | J30: 38561
A31: 24 | B31: Томпонская | C31: 26 | D31: 2 | E31: 24 | F31: 19152 | G31: 207 | H31: 33243 | I31: 68862 | J31: 35619
A32: 25 | B32: Усть-Алданская | C32: 683 | E32: 683 | F32: 27076 | G32: 5912 | H32: 39559 | I32: 59747 | J32: 20188
A33: 26 | B33: Усть-Майская | C33: 936 | D33: 936 | F33: 3803 | H33: 24532 | I33: 32119 | J33: 7587
A34: 27 | B34: Усть-Янская | C34: 121 | E34: 121 | F34: 3872 | G34: 506 | H34: 3003 | I34: 6563 | J34: 3560
A35: 28 | B35: Хангаласская | F35: 7034 | G35: 31 | H35: 60867 | I35: 79262 | J35: 18395
A36: 29 | B36: Чурапчинская | F36: 4483 | G36: 1043 | H36: 17667 | I36: 51058 | J36: 33391
A37: 30 | B37: Мирнинская | C37: 198 | E37: 198 | F37: 9704 | G37: 1956 | H37: 23937 | I37: 35571 | J37: 11634
A38: 31 | B38: Нерюнгринская | C38: 222 | E38: 222 | F38: 9652 | G38: 1735 | H38: 66225 | I38: 71239 | J38: 5014
A39: 32 | B39: Эвено-Бытантай | F39: 115 | H39: 1065 | I39: 900 | J39: -165
A40: 33 | B40: Якутская | C40: 152 | D40: 152 | F40: 71578 | G40: 8628 | H40: 481557 | I40: 590543 | J40: 108986
A41: 34 | B41: Алданская | C41: 401 | E41: 401 | F41: 6182 | G41: 36 | H41: 282477 | I41: 319725 | J41: 37248
A42: 35 | B42: Мег.-Кангаласская | C42: 236 | D42: 228 | E42: 8 | F42: 4103 | G42: 607 | H42: 65964 | I42: 67850 | J42: 1886
A43: 36 | B43: ГБ г.Нерюнгри | F43: 7039 | H43: 17787 | I43: 21217 | J43: 3430
A44: 37 | B44: Бердигестях ДБ | F44: 102 | G44: 30 | H44: 4008 | I44: 2208 | J44: -1800
A45: 38 | B45: Б-ка ГО "п. Жатай" | F45: 572 | H45: 1202 | I45: 1473 | J45: 271
A46: 39 | B46: Алданский БИЦ | F46: 125 | H46: 1168 | I46: 871 | J46: -297
A47: 40 | B47: Томмотский БИЦ | F47: 479 | H47: 544 | I47: 1395 | J47: 851
B48: ИТОГО по МБ | C48: =SUM(C8:C47) -> 21041 | D48: 6158 | E48: 14883 | F48: 275882 | G48: 25580 | H48: =SUM(H8:H47) -> 1647878 | I48: 2023648 | J48: 375770
B49: НБ РС(Я) | C49: 1522 | D49: 1409 | E49: 113 | F49: 11967 | G49: 9185 | H49: 1696621 | I49: 1658961 | J49: -37660
B50: Филиал НБ "ДТК" | F50: 245 | H50: 27357 | I50: 60285 | J50: 32928
B51: ЯРСБНС | C51: 60 | D51: 60 | F51: 2773 | G51: 250 | H51: 13507 | I51: 33464 | J51: 19957
B52: Итого по РС(Я) | C52: =SUM(C48:C51) -> 22623 | D52: 7627 | E52: 14996 | F52: 290867 | G52: 35015 | H52: 3385363 | I52: 3776358 | J52: 390995
